Body Name,Body,Service Division Label,Service Division Code,Organisational Unit,Expenditure Category,Expenditure Code,CIPFA detailed expediture type,CIPFA detailed expediture code,Narrative,Date,Transaction number,Net Amount,Capital and Revenue,Supplier Name,Supplier ID,,
Chorley Borough Council,http://statistics.data.gov.uk/id/local-authority/30UE,Elections,1012,Policy & Governance,Rent/Hire Of Premises,20017,Premises Rents,5007,Hire of hall at All seasons leisure  centre - 4 May 2017 for LCC elections,07/04/2017,0120365,450.00,Revenue,Active Nation UK Ltd,17144,,
Chorley Borough Council,http://statistics.data.gov.uk/id/local-authority/30UE,Corporate Management,1008,Customer & Digital,Contributions Parish Councils,40144,Grants and Subscriptions,5031,top up,05/04/2017,0120255,"1,816.00",Revenue,Adlington Town Council,17626,,
Chorley Borough Council,http://statistics.data.gov.uk/id/local-authority/30UE,Payments of Precepts to Parish,1018,Customer & Digital,Parish Council Tax,04500,Revenue Account Transfers,Balance,precept,05/04/2017,0120255,"16,684.00",Revenue,Adlington Town Council,17626,,
Chorley Borough Council,http://statistics.data.gov.uk/id/local-authority/30UE,Unapportionable Central OHeads,1009,Business Development & Growth,General Repairs - Reactive,20004,Repairs Maintenance & Alts,5005,Blanket order for REACTIVE works for 2015/6.,05/04/2017,0118996,330.00,Revenue,ADT Fire & Security,16645,,
Chorley Borough Council,http://statistics.data.gov.uk/id/local-authority/30UE,Unapportionable Central OHeads,1009,Business Development & Growth,General Repairs - Reactive,20004,Repairs Maintenance & Alts,5005,Blanket order for REACTIVE works for 2015/6.,05/04/2017,0118997,884.73,Revenue,ADT Fire & Security,16645,,
Chorley Borough Council,http://statistics.data.gov.uk/id/local-authority/30UE,Unapportionable Central OHeads,1009,Business Development & Growth,Planned Maintenance,20006,Repairs Maintenance & Alts,5005,Blanket order for PPM works for 2017.,05/04/2017,0118999,351.90,Revenue,ADT Fire & Security,16645,,
Chorley Borough Council,http://statistics.data.gov.uk/id/local-authority/30UE,Unapportionable Central OHeads,1009,Business Development & Growth,General Repairs - Reactive,20004,Repairs Maintenance & Alts,5005,Blanket order for REACTIVE works for 2015/6.,26/04/2017,0120499,399.17,Revenue,ADT Fire & Security,16645,,
Chorley Borough Council,http://statistics.data.gov.uk/id/local-authority/30UE,Unapportionable Central OHeads,1009,Business Development & Growth,General Repairs - Reactive,20004,Repairs Maintenance & Alts,5005,Blanket Order for period May/June 2017,26/04/2017,0120501,479.00,Revenue,ADT Fire & Security,16645,,
Chorley Borough Council,http://statistics.data.gov.uk/id/local-authority/30UE,Unapportionable Central OHeads,1009,Business Development & Growth,Planned Maintenance,20006,Repairs Maintenance & Alts,5005,Blanket order for PPM works for 2017.,26/04/2017,0120502,514.80,Revenue,ADT Fire & Security,16645,,
Chorley Borough Council,http://statistics.data.gov.uk/id/local-authority/30UE,Unapportionable Central OHeads,1009,Business Development & Growth,General Repairs - Reactive,20004,Repairs Maintenance & Alts,5005,Blanket Order for period May/June 2017,26/04/2017,0120503,479.00,Revenue,ADT Fire & Security,16645,,
Chorley Borough Council,http://statistics.data.gov.uk/id/local-authority/30UE,Unapportionable Central OHeads,1009,Business Development & Growth,Planned Maintenance,20006,Repairs Maintenance & Alts,5005,Blanket order for PPM works for 2017.,26/04/2017,0120504,267.68,Revenue,ADT Fire & Security,16645,,
Chorley Borough Council,http://statistics.data.gov.uk/id/local-authority/30UE,Unapportionable Central OHeads,1009,Business Development & Growth,Planned Maintenance,20006,Repairs Maintenance & Alts,5005,Blanket order for PPM works for 2017.,26/04/2017,0120505,316.81,Revenue,ADT Fire & Security,16645,,
Chorley Borough Council,http://statistics.data.gov.uk/id/local-authority/30UE,Unapportionable Central OHeads,1009,Customer & Digital,Bank Charges,40151,Miscellaneous Expenses,5034,Bank Charges,07/04/2017,0120337,"1,171.24",Revenue,Allpay Net Ltd,17242,,
Chorley Borough Council,http://statistics.data.gov.uk/id/local-authority/30UE,Central Support Services,1009,Early Intervention,Miscellaneous Expenses,40200,Miscellaneous Expenses,5034,Chelsea`s Choice production for Chorley and South Ribble Schools. PCC funding,26/04/2017,0120253,"4,190.00",Revenue,Alterego Creative Solutions Ltd,76616,,
Chorley Borough Council,http://statistics.data.gov.uk/id/local-authority/30UE,Central Support Services,1009,Early Intervention,Miscellaneous Expenses,40200,Miscellaneous Expenses,5034,"Chelsea`s Choice Production, joint project for Chorley and South Ribble South Ribble to Raise PO for Chorley to cover payment",26/04/2017,0120253,"4,190.00",Revenue,Alterego Creative Solutions Ltd,76616,,
Chorley Borough Council,http://statistics.data.gov.uk/id/local-authority/30UE,Corporate Management,1008,Customer & Digital,Contributions Parish Councils,40144,Grants and Subscriptions,5031,top up,05/04/2017,0120260,294.00,Revenue,Anderton Parish Council,18125,,
Chorley Borough Council,http://statistics.data.gov.uk/id/local-authority/30UE,Payments of Precepts to Parish,1018,Customer & Digital,Parish Council Tax,04500,Revenue Account Transfers,Balance,precept,05/04/2017,0120260,"4,606.00",Revenue,Anderton Parish Council,18125,,
Chorley Borough Council,http://statistics.data.gov.uk/id/local-authority/30UE,Corporate Management,1008,Customer & Digital,Other Contributions,40145,Grants and Subscriptions,5031,ADDRESS REDACTED,07/04/2017,0120280,"4,530.00",Revenue,NAME REDACTED,74823,,
Chorley Borough Council,http://statistics.data.gov.uk/id/local-authority/30UE,Business Support,1095,Business Development & Growth,Grants To Other Organisations,40127,Grants and Subscriptions,5031,subsidy 9,21/04/2017,0120457,623.00,Revenue,NAME REDACTED,76176,,
Chorley Borough Council,http://statistics.data.gov.uk/id/local-authority/30UE,Recognised Cap Grants & Conts,,Business Development & Growth,Contributions Parish Councils,40144,Grants and Subscriptions,5031,cil receipt,21/04/2017,0120458,"1,281.99",Revenue,Anglezarke Parish Council,76683,,
Chorley Borough Council,http://statistics.data.gov.uk/id/local-authority/30UE,Central Support Services,1009,Customer & Digital,Computer Equipment-Maintenance,40105,Communication and Computing,5028,Managed infrastructure contract - March 2017,05/04/2017,0120205,"2,000.00",Revenue,ANS Group,22502,,
Chorley Borough Council,http://statistics.data.gov.uk/id/local-authority/30UE,Central Support Services,1009,Customer & Digital,Computer Software-Maintenance,40107,Communication and Computing,5028,"Fully Managed Data Centre contract ref ANS/SOS/01451, covering the period 01/04/2017 to 30/06/2017",07/04/2017,0120371,"6,000.00",Revenue,ANS Group,22502,,
Chorley Borough Council,http://statistics.data.gov.uk/id/local-authority/30UE,Central Support Services,1009,Customer & Digital,Computer Software-Maintenance,40107,Communication and Computing,5028,"Base charge for contract ref ANS/4483/529, covering the period 01/04/2017 to 30/06/2018",07/04/2017,0120372,761.25,Revenue,ANS Group,22502,,
Chorley Borough Council,http://statistics.data.gov.uk/id/local-authority/30UE,Democratic Represent and  Mgnt,1007,Customer & Digital,Supplies-Grounds Maintenance,40025,"Equipment, Furniture & Materia",5023,16kg Rainbow Cascade Annuals 6 kg Universal Bloom Perennial,19/04/2017,0120432,"2,956.00",Revenue,AP Broom Landscapes,67257,,
Chorley Borough Council,http://statistics.data.gov.uk/id/local-authority/30UE,Service Management & Support,1009,Customer & Digital,Protective Clothing,40040,"Clothing, Uniforms and Laundry",5025,"Sterile Eyewash saline pods, 4F9661 hypaclens compact 20 mls pods.  box of 25.  Product Code = 4F9661",05/04/2017,0120169,17.60,Revenue,Arco Limited,17458,,
Chorley Borough Council,http://statistics.data.gov.uk/id/local-authority/30UE,Service Management & Support,1009,Customer & Digital,Protective Clothing,40040,"Clothing, Uniforms and Laundry",5025,Arco Essential Cargo Trousers.  32 Waist and 32 Regular Leg.  Product Code = 2637032.,05/04/2017,0120169,29.35,Revenue,Arco Limited,17458,,
Chorley Borough Council,http://statistics.data.gov.uk/id/local-authority/30UE,Service Management & Support,1009,Customer & Digital,Protective Clothing,40040,"Clothing, Uniforms and Laundry",5025,Arco Essential Cargo Trousers.  34 Waist and 32 Regular Leg.  Product Code = 2637034.,05/04/2017,0120169,29.35,Revenue,Arco Limited,17458,,
Chorley Borough Council,http://statistics.data.gov.uk/id/local-authority/30UE,Service Management & Support,1009,Customer & Digital,Protective Clothing,40040,"Clothing, Uniforms and Laundry",5025,Arco Essential Cargo Trousers.  36 Waist and 32 Regular Leg.  Product Code = 2636936.,05/04/2017,0120169,29.35,Revenue,Arco Limited,17458,,
Chorley Borough Council,http://statistics.data.gov.uk/id/local-authority/30UE,Service Management & Support,1009,Customer & Digital,Protective Clothing,40040,"Clothing, Uniforms and Laundry",5025,Arco Essential Cargo Trousers.  38 Waist and 32 Regular Leg.  Product Code = 2636938.,05/04/2017,0120169,5.87,Revenue,Arco Limited,17458,,
Chorley Borough Council,http://statistics.data.gov.uk/id/local-authority/30UE,Service Management & Support,1009,Customer & Digital,Protective Clothing,40040,"Clothing, Uniforms and Laundry",5025,Arco Essential Cargo Trousers.  40 Waist and 32 Regular Leg.  Product Code = 2636940.,05/04/2017,0120169,11.74,Revenue,Arco Limited,17458,,
Chorley Borough Council,http://statistics.data.gov.uk/id/local-authority/30UE,Service Management & Support,1009,Customer & Digital,Protective Clothing,40040,"Clothing, Uniforms and Laundry",5025,Arco Essential Cargo Trousers.  42 Waist and 32 Regular Leg.  Product Code = 2636942.,05/04/2017,0120169,29.35,Revenue,Arco Limited,17458,,
Chorley Borough Council,http://statistics.data.gov.uk/id/local-authority/30UE,Service Management & Support,1009,Customer & Digital,Protective Clothing,40040,"Clothing, Uniforms and Laundry",5025,3M Peltor G2031A Forestry Combination Helmet including visor and ear protection.  Produst Code = 258000,05/04/2017,0120169,136.55,Revenue,Arco Limited,17458,,
Chorley Borough Council,http://statistics.data.gov.uk/id/local-authority/30UE,Service Management & Support,1009,Customer & Digital,Supplies-Grounds Maintenance,40025,"Equipment, Furniture & Materia",5023,MPL Cone 750mm product code - 5721200,26/04/2017,0120224,153.40,Revenue,Arco Limited,17458,,
Chorley Borough Council,http://statistics.data.gov.uk/id/local-authority/30UE,Service Management & Support,1009,Customer & Digital,Supplies-Grounds Maintenance,40025,"Equipment, Furniture & Materia",5023,Cone sign Keep left product code - 5720205,26/04/2017,0120224,54.48,Revenue,Arco Limited,17458,,
Chorley Borough Council,http://statistics.data.gov.uk/id/local-authority/30UE,Service Management & Support,1009,Customer & Digital,Supplies-Grounds Maintenance,40025,"Equipment, Furniture & Materia",5023,Cone sign Keep right product code - 5720206,26/04/2017,0120224,54.48,Revenue,Arco Limited,17458,,
Chorley Borough Council,http://statistics.data.gov.uk/id/local-authority/30UE,Unapportionable Central OHeads,1009,Policy & Governance,Car Leasing Payment,14100,Direct Employee Expenses,5001,Car Lease Scheme,12/04/2017,0120299,"2,955.24",Revenue,Arnold Clark Finance Ltd,20685,,
Chorley Borough Council,http://statistics.data.gov.uk/id/local-authority/30UE,Unapportionable Central OHeads,1009,Policy & Governance,Car Leasing Payment,14100,Direct Employee Expenses,5001,Car Lease Scheme,12/04/2017,0120299,229.05,Revenue,Arnold Clark Finance Ltd,20685,,
Chorley Borough Council,http://statistics.data.gov.uk/id/local-authority/30UE,Control Accounts,Control,Policy & Governance,Manual Control Account,00001,Balance Sheet,Balance,Car Lease Scheme,12/04/2017,0120299,-229.05,Revenue,Arnold Clark Finance Ltd,20685,,
Chorley Borough Council,http://statistics.data.gov.uk/id/local-authority/30UE,Unapportionable Central OHeads,1009,Policy & Governance,Car Leasing Payment,14100,Direct Employee Expenses,5001,Car Lease Scheme,12/04/2017,0120381,409.88,Revenue,Arnold Clark Finance Ltd,20685,,
Chorley Borough Council,http://statistics.data.gov.uk/id/local-authority/30UE,Unapportionable Central OHeads,1009,Policy & Governance,Car Leasing Payment,14100,Direct Employee Expenses,5001,Car Lease Scheme,12/04/2017,0120381,29.82,Revenue,Arnold Clark Finance Ltd,20685,,
Chorley Borough Council,http://statistics.data.gov.uk/id/local-authority/30UE,Control Accounts,Control,Policy & Governance,Manual Control Account,00001,Balance Sheet,Balance,Car Lease Scheme,12/04/2017,0120381,-29.82,Revenue,Arnold Clark Finance Ltd,20685,,
Chorley Borough Council,http://statistics.data.gov.uk/id/local-authority/30UE,Service Management & Support,1009,Policy & Governance,Car Leasing Payment,14100,Direct Employee Expenses,5001,Car Lease Scheme,21/04/2017,0120571,"2,527.20",Revenue,Arnold Clark Finance Ltd,20685,,
Chorley Borough Council,http://statistics.data.gov.uk/id/local-authority/30UE,Service Management & Support,1009,Policy & Governance,Car Leasing Payment,14100,Direct Employee Expenses,5001,Car Lease Scheme,21/04/2017,0120571,187.40,Revenue,Arnold Clark Finance Ltd,20685,,
Chorley Borough Council,http://statistics.data.gov.uk/id/local-authority/30UE,Corporate Management,1008,Customer & Digital,Contributions Parish Councils,40144,Grants and Subscriptions,5031,top up,05/04/2017,0120256,"3,877.00",Revenue,Astley Village Parish Council,17642,,
Chorley Borough Council,http://statistics.data.gov.uk/id/local-authority/30UE,Payments of Precepts to Parish,1018,Customer & Digital,Parish Council Tax,04500,Revenue Account Transfers,Balance,precept,05/04/2017,0120256,"20,480.00",Revenue,Astley Village Parish Council,17642,,
Chorley Borough Council,http://statistics.data.gov.uk/id/local-authority/30UE,Democratic Represent and  Mgnt,1007,Customer & Digital,Playground Equipment,40008,"Equipment, Furniture & Materia",5023,"Painting to the railings at Orchard Drive, Whittle le Woods and the benches at Astley Park",19/04/2017,0120471,520.00,Revenue,Barrie Thompson,19585,,
Chorley Borough Council,http://statistics.data.gov.uk/id/local-authority/30UE,Business Support,1095,Business Development & Growth,Grants To Other Organisations,40127,Grants and Subscriptions,5031,subsidy 2,26/04/2017,0120555,910.50,Revenue,Ben Hall - Anytime Fitness Chorley,76500,,
Chorley Borough Council,http://statistics.data.gov.uk/id/local-authority/30UE,Homelessness,1075,Early Intervention,Laundry,40042,"Clothing, Uniforms and Laundry",5025,"Linen service at Cotswold Supported Housing, Cotswold Rd, Chorley, Lancashire PR73HW.period of April 2016 to March 2017",07/04/2017,0120302,251.57,Revenue,Berendsen UK Ltd,20799,,
Chorley Borough Council,http://statistics.data.gov.uk/id/local-authority/30UE,Democratic Represent and  Mgnt,1007,Policy & Governance,Exhibitions & Special Events,40158,Miscellaneous Expenses,5034,Edit and DVD creation for Sacrifice Exhibition at Astley Hall.,12/04/2017,0120197,350.00,Revenue,Biscuit Media Ltd,71751,,
Chorley Borough Council,http://statistics.data.gov.uk/id/local-authority/30UE,Economic Development,1096,Business Development & Growth,Professional Fees,40063,Services,5027,Engineers fee for design and supervision for Euxton Lane (part payment) to 14 March 2017.,19/04/2017,0120497,576.00,Revenue,Borough Of Pendle,17946,,
Chorley Borough Council,http://statistics.data.gov.uk/id/local-authority/30UE,Corporate Management,1008,Customer & Digital,Contributions Parish Councils,40144,Grants and Subscriptions,5031,top up,05/04/2017,0120257,414.00,Revenue,Bretherton Parish Council,17108,,
Chorley Borough Council,http://statistics.data.gov.uk/id/local-authority/30UE,Payments of Precepts to Parish,1018,Customer & Digital,Parish Council Tax,04500,Revenue Account Transfers,Balance,precept,05/04/2017,0120257,"16,486.00",Revenue,Bretherton Parish Council,17108,,
Chorley Borough Council,http://statistics.data.gov.uk/id/local-authority/30UE,Corporate Management,1008,Customer & Digital,Contributions Parish Councils,40144,Grants and Subscriptions,5031,top up,05/04/2017,0120258,273.00,Revenue,Brindle Parish Council,17023,,
Chorley Borough Council,http://statistics.data.gov.uk/id/local-authority/30UE,Payments of Precepts to Parish,1018,Customer & Digital,Parish Council Tax,04500,Revenue Account Transfers,Balance,precept,05/04/2017,0120258,"6,527.00",Revenue,Brindle Parish Council,17023,,
Chorley Borough Council,http://statistics.data.gov.uk/id/local-authority/30UE,Homelessness,1075,Business Development & Growth,Gas,20014,Energy Costs,5006,cotswold house,12/04/2017,0120254,473.75,Revenue,British Gas Business,22242,,
Chorley Borough Council,http://statistics.data.gov.uk/id/local-authority/30UE,Democratic Represent and  Mgnt,1007,Business Development & Growth,Gas,20014,Energy Costs,5006,coach house,12/04/2017,0120254,378.93,Revenue,British Gas Business,22242,,
Chorley Borough Council,http://statistics.data.gov.uk/id/local-authority/30UE,Community Development,1097,Business Development & Growth,Gas,20014,Energy Costs,5006,accounting,12/04/2017,0120254,65.40,Revenue,British Gas Business,22242,,
Chorley Borough Council,http://statistics.data.gov.uk/id/local-authority/30UE,Unapportionable Central OHeads,1009,Business Development & Growth,Gas,20014,Energy Costs,5006,bengal street,12/04/2017,0120254,208.47,Revenue,British Gas Business,22242,,
Chorley Borough Council,http://statistics.data.gov.uk/id/local-authority/30UE,Democratic Represent and  Mgnt,1007,Business Development & Growth,Gas,20014,Energy Costs,5006,astley cottage,12/04/2017,0120254,105.98,Revenue,British Gas Business,22242,,
Chorley Borough Council,http://statistics.data.gov.uk/id/local-authority/30UE,Democratic Represent and  Mgnt,1007,Business Development & Growth,Gas,20014,Energy Costs,5006,clayton brook cc,12/04/2017,0120254,142.01,Revenue,British Gas Business,22242,,
Chorley Borough Council,http://statistics.data.gov.uk/id/local-authority/30UE,Democratic Represent and  Mgnt,1007,Business Development & Growth,Gas,20014,Energy Costs,5006,astley vill cc,12/04/2017,0120254,193.68,Revenue,British Gas Business,22242,,
Chorley Borough Council,http://statistics.data.gov.uk/id/local-authority/30UE,Democratic Represent and  Mgnt,1007,Business Development & Growth,Gas,20014,Energy Costs,5006,astley farmhouse,12/04/2017,0120254,123.43,Revenue,British Gas Business,22242,,
Chorley Borough Council,http://statistics.data.gov.uk/id/local-authority/30UE,Democratic Represent and  Mgnt,1007,Business Development & Growth,Gas,20014,Energy Costs,5006,eaves green,12/04/2017,0120254,166.89,Revenue,British Gas Business,22242,,
Chorley Borough Council,http://statistics.data.gov.uk/id/local-authority/30UE,Unapportionable Central OHeads,1009,Business Development & Growth,Gas,20014,Energy Costs,5006,union street,12/04/2017,0120254,945.80,Revenue,British Gas Business,22242,,
Chorley Borough Council,http://statistics.data.gov.uk/id/local-authority/30UE,Democratic Represent and  Mgnt,1007,Business Development & Growth,Gas,20014,Energy Costs,5006,astley hall,12/04/2017,0120254,"1,286.96",Revenue,British Gas Business,22242,,
Chorley Borough Council,http://statistics.data.gov.uk/id/local-authority/30UE,Unapportionable Central OHeads,1009,Business Development & Growth,Gas,20014,Energy Costs,5006,town hall,12/04/2017,0120254,"1,010.41",Revenue,British Gas Business,22242,,
Chorley Borough Council,http://statistics.data.gov.uk/id/local-authority/30UE,Homelessness,1075,Business Development & Growth,Gas,20014,Energy Costs,5006,cotswold,28/04/2017,0120703,429.38,Revenue,British Gas Business,22242,,
Chorley Borough Council,http://statistics.data.gov.uk/id/local-authority/30UE,Community Development,1097,Business Development & Growth,Gas,20014,Energy Costs,5006,accoutning,28/04/2017,0120703,60.32,Revenue,British Gas Business,22242,,
Chorley Borough Council,http://statistics.data.gov.uk/id/local-authority/30UE,Democratic Represent and  Mgnt,1007,Business Development & Growth,Gas,20014,Energy Costs,5006,astley cottage,28/04/2017,0120703,88.27,Revenue,British Gas Business,22242,,
Chorley Borough Council,http://statistics.data.gov.uk/id/local-authority/30UE,Unapportionable Central OHeads,1009,Business Development & Growth,Gas,20014,Energy Costs,5006,union street,28/04/2017,0120703,906.05,Revenue,British Gas Business,22242,,
Chorley Borough Council,http://statistics.data.gov.uk/id/local-authority/30UE,Democratic Represent and  Mgnt,1007,Business Development & Growth,Gas,20014,Energy Costs,5006,astley hall,28/04/2017,0120703,"1,263.18",Revenue,British Gas Business,22242,,
Chorley Borough Council,http://statistics.data.gov.uk/id/local-authority/30UE,Homelessness,1075,Business Development & Growth,Gas,20014,Energy Costs,5006,cotswold,18/04/2017,0120704,429.38,Revenue,British Gas Business,22242,,
Chorley Borough Council,http://statistics.data.gov.uk/id/local-authority/30UE,Community Development,1097,Business Development & Growth,Gas,20014,Energy Costs,5006,accoutning,18/04/2017,0120704,60.32,Revenue,British Gas Business,22242,,
Chorley Borough Council,http://statistics.data.gov.uk/id/local-authority/30UE,Democratic Represent and  Mgnt,1007,Business Development & Growth,Gas,20014,Energy Costs,5006,astley cottage,18/04/2017,0120704,88.27,Revenue,British Gas Business,22242,,
Chorley Borough Council,http://statistics.data.gov.uk/id/local-authority/30UE,Democratic Represent and  Mgnt,1007,Business Development & Growth,Gas,20014,Energy Costs,5006,eaves green,18/04/2017,0120704,163.90,Revenue,British Gas Business,22242,,
Chorley Borough Council,http://statistics.data.gov.uk/id/local-authority/30UE,Unapportionable Central OHeads,1009,Business Development & Growth,Gas,20014,Energy Costs,5006,union street,18/04/2017,0120704,906.05,Revenue,British Gas Business,22242,,
Chorley Borough Council,http://statistics.data.gov.uk/id/local-authority/30UE,Democratic Represent and  Mgnt,1007,Business Development & Growth,Gas,20014,Energy Costs,5006,asley hall,18/04/2017,0120704,"1,263.18",Revenue,British Gas Business,22242,,
Chorley Borough Council,http://statistics.data.gov.uk/id/local-authority/30UE,Democratic Represent and  Mgnt,1007,Policy & Governance,Exhibitions,40176,Miscellaneous Expenses,5034,Deposit for BWPA exhibition at Astley Hall Nov/Dec 2017,28/04/2017,0120710,655.00,Revenue,British Wildlife Photography Awards(BWPA),76375,,
Chorley Borough Council,http://statistics.data.gov.uk/id/local-authority/30UE,Service Management & Support,1009,Customer & Digital,External Contractor,40198,Miscellaneous Expenses,5034,Carryout emptying of interceptor tank and clearing of gullies on a monthly basis at Bengal St Depot as requested,19/04/2017,0120303,325.00,Revenue,C J Lyon,16579,,
Chorley Borough Council,http://statistics.data.gov.uk/id/local-authority/30UE,Service Management & Support,1009,Customer & Digital,External Contractor,40198,Miscellaneous Expenses,5034,Carryout jetting works at Higher Meadow ponds as requested,21/04/2017,0120495,195.00,Revenue,C J Lyon,16579,,
Chorley Borough Council,http://statistics.data.gov.uk/id/local-authority/30UE,Service Management & Support,1009,Customer & Digital,External Contractor,40198,Miscellaneous Expenses,5034,Clear drains and jet line at Wrangletts rec as requested,21/04/2017,0120495,130.00,Revenue,C J Lyon,16579,,
Chorley Borough Council,http://statistics.data.gov.uk/id/local-authority/30UE,Service Management & Support,1009,Customer & Digital,External Contractor,40198,Miscellaneous Expenses,5034,Carryout jetting works at Astley park as requested,21/04/2017,0120495,130.00,Revenue,C J Lyon,16579,,
Chorley Borough Council,http://statistics.data.gov.uk/id/local-authority/30UE,Unapportionable Central OHeads,1009,Customer & Digital,General Repairs - Reactive,20004,Repairs Maintenance & Alts,5005,Carryout jetting works at unit ADDRESS REDACTED as requested,21/04/2017,0120495,130.00,Revenue,C J Lyon,16579,,
Chorley Borough Council,http://statistics.data.gov.uk/id/local-authority/30UE,Service Management & Support,1009,Customer & Digital,External Contractor,40198,Miscellaneous Expenses,5034,Emptying of interceptor and clearing of drains in Bengal St depot as required for EA licence at agreed price 65per hour 4hrs ,28/04/2017,0120662,325.00,Revenue,C J Lyon,16579,,
Chorley Borough Council,http://statistics.data.gov.uk/id/local-authority/30UE,Unapportionable Central OHeads,1009,Customer & Digital,Emergency Call Out System,40096,Communication and Computing,5028,out of hours,12/04/2017,0120332,809.68,Revenue,CallCare Ltd,20257,,
Chorley Borough Council,http://statistics.data.gov.uk/id/local-authority/30UE,Unapportionable Central OHeads,1009,Customer & Digital,Photocopier Charges,40047,"Printing, Stationery & General",5026,contract charges,12/04/2017,0120384,"2,145.10",Revenue,Canon (UK) Ltd,17492,,
Chorley Borough Council,http://statistics.data.gov.uk/id/local-authority/30UE,Housing Benefit Administration,1077,Customer & Digital,Computer Software-Additional,40102,Communication and Computing,5028,EOY weekend support for Saturday 4th and Sunday 5th March for Housing Benefits and Council Tax 8am to 6pm (Sunday 5pm),12/04/2017,0120396,"1,800.00",Revenue,Capita Business Services Ltd,17151,,
Chorley Borough Council,http://statistics.data.gov.uk/id/local-authority/30UE,Unapportionable Central OHeads,1009,Customer & Digital,Computer Software-Maintenance,40107,Communication and Computing,5028,Business Rates Software Charges - Reval. and Trans. Relief. 975.00,12/04/2017,0120420,975.00,Revenue,Capita Business Services Ltd,17151,,
Chorley Borough Council,http://statistics.data.gov.uk/id/local-authority/30UE,Central Support Services,1009,Customer & Digital,Computer Software-Maintenance,40107,Communication and Computing,5028,"Year 5 of 5 250 x SecurEnvoy SecurAccess 1yr Subs 250-499 Users (part code SE-ACCESS-1YR-250R)include 250 x Secur",28/04/2017,0120643,"1,800.00",Revenue,Capita IT Services Ltd T/A Network Technology,58851,,
Chorley Borough Council,http://statistics.data.gov.uk/id/local-authority/30UE,Unapportionable Central OHeads,1009,Policy & Governance,Miscellaneous Expenses,40200,Miscellaneous Expenses,5034,Event management for Chorley Grand Prix,26/04/2017,0120597,"2,458.69",Revenue,Carl J Lawrenson,69770,,
Chorley Borough Council,http://statistics.data.gov.uk/id/local-authority/30UE,Unapportionable Central OHeads,1009,Policy & Governance,Miscellaneous Expenses,40200,Miscellaneous Expenses,5034,Event fee and related expenses for the Chorley Grand Prix 2017,28/04/2017,0120544,"4,750.23",Revenue,Carole Leigh,69859,,
Chorley Borough Council,http://statistics.data.gov.uk/id/local-authority/30UE,Unapportionable Central OHeads,1009,Policy & Governance,Miscellaneous Expenses,40200,Miscellaneous Expenses,5034,Chorley Grand Prix 2017 race management expenses for race officials and the National Escort Group,28/04/2017,0120546,"4,316.05",Revenue,Carole Leigh,69859,,
Chorley Borough Council,http://statistics.data.gov.uk/id/local-authority/30UE,Corporate Management,1008,Early Intervention,Consultants` Fees,40077,Services,5027,group 2 medical consultancy for 2016-17,07/04/2017,0120304,"1,080.00",Revenue,Castlesteads Ltd,72796,,
Chorley Borough Council,http://statistics.data.gov.uk/id/local-authority/30UE,Corporate Management,1008,Customer & Digital,Contributions Parish Councils,40144,Grants and Subscriptions,5031,top up,05/04/2017,0120259,345.00,Revenue,Charnock Richard Parish Cncl,16206,,
Chorley Borough Council,http://statistics.data.gov.uk/id/local-authority/30UE,Payments of Precepts to Parish,1018,Customer & Digital,Parish Council Tax,04500,Revenue Account Transfers,Balance,precetp,05/04/2017,0120259,"27,655.00",Revenue,Charnock Richard Parish Cncl,16206,,
Chorley Borough Council,http://statistics.data.gov.uk/id/local-authority/30UE,Economic Development,1096,Business Development & Growth,Grants To Other Organisations,40127,Grants and Subscriptions,5031,Large core funding contract for April 2017 - March 2018,28/04/2017,0120670,"15,000.00",Revenue,Chorley & South Ribble Shopmobility,18403,,
Chorley Borough Council,http://statistics.data.gov.uk/id/local-authority/30UE,Corporate Management,1008,Early Intervention,Taxi Testing & Vehicle Safety Report,40234,Services,5027,mot,07/04/2017,0120331,438.80,Revenue,Chorley Autocare Ltd,17110,,
Chorley Borough Council,http://statistics.data.gov.uk/id/local-authority/30UE,Corporate Management,1008,Early Intervention,Taxi Testing & Vehicle Safety Report,40234,Services,5027,taxi test,07/04/2017,0120331,68.40,Revenue,Chorley Autocare Ltd,17110,,
Chorley Borough Council,http://statistics.data.gov.uk/id/local-authority/30UE,Unapportionable Central OHeads,1009,Customer & Digital,Miscellaneous Expenses,40200,Miscellaneous Expenses,5034,2x 50L cyclinder of balloon gas for Chorley GP blimp,19/04/2017,0120222,250.00,Revenue,Chorley Bottled Gas Ltd,19484,,
Chorley Borough Council,http://statistics.data.gov.uk/id/local-authority/30UE,Community Development,1097,Policy & Governance,Core Funding Grants,40133,Grants and Subscriptions,5031,Contract extension of one month,26/04/2017,0120625,"1,250.00",Revenue,Chorley Womens Centre,17036,,
Chorley Borough Council,http://statistics.data.gov.uk/id/local-authority/30UE,Capital,Capital,Policy & Governance,Other Capital Grants/Loans,03000,Capital Expenditure,Capital,Chorley Council Grant Contribution for Chorley Youth Zone,12/04/2017,0120452,"450,000.00",Capital,Chorley Youth Zone,76620,,
Chorley Borough Council,http://statistics.data.gov.uk/id/local-authority/30UE,Capital,Capital,Policy & Governance,Other Capital Grants/Loans,03000,Capital Expenditure,Capital,Chorley Council Grant Contribution for Chorley Youth Zone,12/04/2017,0120453,"55,000.00",Capital,Chorley Youth Zone,76620,,
Chorley Borough Council,http://statistics.data.gov.uk/id/local-authority/30UE,Unapportionable Central OHeads,1009,Business Development & Growth,Planned Maintenance,20006,Repairs Maintenance & Alts,5005,Blanket order for PPM contracts for alarms at Astley.,21/04/2017,0117924,416.52,Revenue,Chubb Electronic Sec Sys Ltd,16228,,
Chorley Borough Council,http://statistics.data.gov.uk/id/local-authority/30UE,Unapportionable Central OHeads,1009,Policy & Governance,Computer Software-Additional,40102,Communication and Computing,5028,Purchase card module Implementation Implementation of the fixed assets module Completion of the budget preparation module ,21/04/2017,0120506,458.95,Revenue,Civica UK Limited,17463,,
Chorley Borough Council,http://statistics.data.gov.uk/id/local-authority/30UE,Corporate Management,1008,Customer & Digital,Contributions Parish Councils,40144,Grants and Subscriptions,5031,top up,05/04/2017,0120261,"11,458.00",Revenue,Clayton-Le-Woods Parish Coun.,17024,,
Chorley Borough Council,http://statistics.data.gov.uk/id/local-authority/30UE,Payments of Precepts to Parish,1018,Customer & Digital,Parish Council Tax,04500,Revenue Account Transfers,Balance,precept,05/04/2017,0120261,"103,577.00",Revenue,Clayton-Le-Woods Parish Coun.,17024,,
Chorley Borough Council,http://statistics.data.gov.uk/id/local-authority/30UE,Corporate Management,1008,Customer & Digital,Contributions Parish Councils,40144,Grants and Subscriptions,5031,top up,05/04/2017,0120262,"10,576.00",Revenue,Coppull Parish Council,17025,,
Chorley Borough Council,http://statistics.data.gov.uk/id/local-authority/30UE,Payments of Precepts to Parish,1018,Customer & Digital,Parish Council Tax,04500,Revenue Account Transfers,Balance,precept,05/04/2017,0120262,"82,049.00",Revenue,Coppull Parish Council,17025,,
Chorley Borough Council,http://statistics.data.gov.uk/id/local-authority/30UE,Corporate Management,1008,Customer & Digital,Contributions Parish Councils,40144,Grants and Subscriptions,5031,top up,05/04/2017,0120263,"1,440.00",Revenue,Croston Parish Council,17026,,
Chorley Borough Council,http://statistics.data.gov.uk/id/local-authority/30UE,Payments of Precepts to Parish,1018,Customer & Digital,Parish Council Tax,04500,Revenue Account Transfers,Balance,precept,05/04/2017,0120263,"21,710.00",Revenue,Croston Parish Council,17026,,
Chorley Borough Council,http://statistics.data.gov.uk/id/local-authority/30UE,Capital Grants & Contributions,,Business Development & Growth,General Balances,00100,Balance Sheet,Balance,contribution,21/04/2017,0120580,"24,631.87",Revenue,Croston Parish Council,17026,,
Chorley Borough Council,http://statistics.data.gov.uk/id/local-authority/30UE,Business Support,1095,Business Development & Growth,Grants To Other Organisations,40127,Grants and Subscriptions,5031,3rd payment,21/04/2017,0120554,"3,000.00",Revenue,CSM (Chorley) Ltd,62057,,
Chorley Borough Council,http://statistics.data.gov.uk/id/local-authority/30UE,Corporate Management,1008,Customer & Digital,Contributions Parish Councils,40144,Grants and Subscriptions,5031,top up,05/04/2017,0120264,2.00,Revenue,Cuerden Parish Council,16207,,
Chorley Borough Council,http://statistics.data.gov.uk/id/local-authority/30UE,Payments of Precepts to Parish,1018,Customer & Digital,Parish Council Tax,04500,Revenue Account Transfers,Balance,precept,05/04/2017,0120264,"1,148.00",Revenue,Cuerden Parish Council,16207,,
Chorley Borough Council,http://statistics.data.gov.uk/id/local-authority/30UE,Service Management & Support,1009,Customer & Digital,Supplies-Grounds Maintenance,40025,"Equipment, Furniture & Materia",5023,1 Balmoral Bench 1.8m KD with a stainless steel plaque 6``x2`` ,05/04/2017,0120171,370.82,Revenue,Cyan,61782,,
Chorley Borough Council,http://statistics.data.gov.uk/id/local-authority/30UE,Unapportionable Central OHeads,1009,Customer & Digital,Miscellaneous Expenses,40200,Miscellaneous Expenses,5034,Transport and hire of 20ft shipping container,26/04/2017,0120618,400.00,Revenue,D Cain & Son Ltd,21353,,
Chorley Borough Council,http://statistics.data.gov.uk/id/local-authority/30UE,Central Support Services,1009,Customer & Digital,Computer Equipment-Purchase,40098,Communication and Computing,5028,ethernet,19/04/2017,0118169,304.00,Revenue,DAC Technology Ltd,76398,,
Chorley Borough Council,http://statistics.data.gov.uk/id/local-authority/30UE,Central Support Services,1009,Customer & Digital,Computer Equipment-Purchase,40098,Communication and Computing,5028,12 x HANNS G HL225DNB @ 75 each,05/04/2017,0120228,900.00,Revenue,DAC Technology Ltd,76398,,
Chorley Borough Council,http://statistics.data.gov.uk/id/local-authority/30UE,Central Support Services,1009,Customer & Digital,Computer Equipment-Purchase,40098,Communication and Computing,5028,delivery,05/04/2017,0120228,20.00,Revenue,DAC Technology Ltd,76398,,
Chorley Borough Council,http://statistics.data.gov.uk/id/local-authority/30UE,Central Support Services,1009,Customer & Digital,Computer Equipment-Purchase,40098,Communication and Computing,5028,42x DVI-I to DVI-D & VGA Male to 2 x Female Splitter Cable - @ 2.69 each,05/04/2017,0120229,112.98,Revenue,DAC Technology Ltd,76398,,
Chorley Borough Council,http://statistics.data.gov.uk/id/local-authority/30UE,Central Support Services,1009,Customer & Digital,Computer Equipment-Purchase,40098,Communication and Computing,5028,42x 2M High Grade DVI-D Monitor Connector Cable Male to Male (18+1 Single link) - @ 3.10 each,05/04/2017,0120229,130.20,Revenue,DAC Technology Ltd,76398,,
Chorley Borough Council,http://statistics.data.gov.uk/id/local-authority/30UE,Central Support Services,1009,Customer & Digital,Computer Equipment-Purchase,40098,Communication and Computing,5028,delivery,05/04/2017,0120229,9.95,Revenue,DAC Technology Ltd,76398,,
Chorley Borough Council,http://statistics.data.gov.uk/id/local-authority/30UE,Central Support Services,1009,Customer & Digital,Computer Equipment-Purchase,40098,Communication and Computing,5028,3M White RJ45 UTP CAT5e Stranded Flush Moulded Snagless Network Cable 24AWG x 50 @ 1.59 each,05/04/2017,0120233,79.50,Revenue,DAC Technology Ltd,76398,,
Chorley Borough Council,http://statistics.data.gov.uk/id/local-authority/30UE,Central Support Services,1009,Customer & Digital,Computer Equipment-Purchase,40098,Communication and Computing,5028,5M White RJ45 UTP CAT5e Stranded Flush Moulded Snagless Network Cable 24AWG x 50 @ 1.65 each,05/04/2017,0120233,82.50,Revenue,DAC Technology Ltd,76398,,
Chorley Borough Council,http://statistics.data.gov.uk/id/local-authority/30UE,Central Support Services,1009,Customer & Digital,Computer Equipment-Purchase,40098,Communication and Computing,5028,2M White RJ45 UTP CAT5e Stranded Flush Moulded Snagless Network Cable 24AWG x 20 @ 1.45 each,05/04/2017,0120233,29.00,Revenue,DAC Technology Ltd,76398,,
Chorley Borough Council,http://statistics.data.gov.uk/id/local-authority/30UE,Central Support Services,1009,Customer & Digital,Computer Equipment-Purchase,40098,Communication and Computing,5028,3M Purple RJ45 UTP CAT5e Stranded Flush Moulded Snagless Network Cable 24AWG x 50 @ 1.59 each,05/04/2017,0120233,79.50,Revenue,DAC Technology Ltd,76398,,
Chorley Borough Council,http://statistics.data.gov.uk/id/local-authority/30UE,Central Support Services,1009,Customer & Digital,Computer Equipment-Purchase,40098,Communication and Computing,5028,5M Purple RJ45 UTP CAT5e Stranded Flush Moulded Snagless Network Cable 24AWG x 20 @ 1.75 each,05/04/2017,0120233,35.00,Revenue,DAC Technology Ltd,76398,,
Chorley Borough Council,http://statistics.data.gov.uk/id/local-authority/30UE,Central Support Services,1009,Customer & Digital,Computer Equipment-Purchase,40098,Communication and Computing,5028,2M Purple RJ45 UTP CAT5e Stranded Flush Moulded Snagless Network Cable 24AWG x 20 @ 1.45 each,05/04/2017,0120233,29.00,Revenue,DAC Technology Ltd,76398,,
Chorley Borough Council,http://statistics.data.gov.uk/id/local-authority/30UE,Central Support Services,1009,Customer & Digital,Computer Equipment-Purchase,40098,Communication and Computing,5028,1M White RJ45 UTP CAT5e Stranded Flush Moulded Snagless Network Cable 24AWG x 50 @ 99p each,05/04/2017,0120233,49.50,Revenue,DAC Technology Ltd,76398,,
Chorley Borough Council,http://statistics.data.gov.uk/id/local-authority/30UE,Central Support Services,1009,Customer & Digital,Computer Equipment-Purchase,40098,Communication and Computing,5028,1M Purple RJ45 UTP CAT5e Stranded Flush Moulded Snagless Network Cable 24AWG x 50 @ 99p each Delivery @ 9.95,05/04/2017,0120233,59.45,Revenue,DAC Technology Ltd,76398,,
Chorley Borough Council,http://statistics.data.gov.uk/id/local-authority/30UE,Central Support Services,1009,Customer & Digital,Computer Equipment-Purchase,40098,Communication and Computing,5028,Hanns-G HL225DNB 22`` TFT Monitor x 60,19/04/2017,0120421,"4,445.00",Revenue,DAC Technology Ltd,76398,,
Chorley Borough Council,http://statistics.data.gov.uk/id/local-authority/30UE,Central Support Services,1009,Customer & Digital,Computer Equipment-Purchase,40098,Communication and Computing,5028,Hanns G HL225 Monitors x 8 @ 77.00 each,21/04/2017,0120583,616.00,Revenue,DAC Technology Ltd,76398,,
Chorley Borough Council,http://statistics.data.gov.uk/id/local-authority/30UE,Central Support Services,1009,Customer & Digital,Computer Equipment-Purchase,40098,Communication and Computing,5028,delivery,21/04/2017,0120583,9.95,Revenue,DAC Technology Ltd,76398,,
Chorley Borough Council,http://statistics.data.gov.uk/id/local-authority/30UE,Corporate Management,1008,Customer & Digital,Other Contributions,40145,Grants and Subscriptions,5031,ADDRESS REDACTED,28/04/2017,0120718,"4,884.00",Revenue,NAME REDACTED,73791,,
Chorley Borough Council,http://statistics.data.gov.uk/id/local-authority/30UE,Service Management & Support,1009,Customer & Digital,Tools & Equipment - Maintenance,40005,"Equipment, Furniture & Materia",5023,Supply items as on delivery note number 025146 to Chorley Council,26/04/2017,0120620,537.02,Revenue,Dick Leigh,17138,,
Chorley Borough Council,http://statistics.data.gov.uk/id/local-authority/30UE,Unapportionable Central OHeads,1009,Policy & Governance,Miscellaneous Expenses,40200,Miscellaneous Expenses,5034,Barrier Jackets for Chorley Grand Prix Route,28/04/2017,0120712,"1,319.56",Revenue,Digetex.com,76684,,
Chorley Borough Council,http://statistics.data.gov.uk/id/local-authority/30UE,Unapportionable Central OHeads,1009,Policy & Governance,Miscellaneous Expenses,40200,Miscellaneous Expenses,5034,Invoice to cover contract 16/17,05/04/2017,0120230,"5,076.67",Revenue,Disabled Enabled Limited trading as Disabled,69753,,
Chorley Borough Council,http://statistics.data.gov.uk/id/local-authority/30UE,Economic Development,1096,Business Development & Growth,Publicity - Advertising,40157,Miscellaneous Expenses,5034,2017 CDC Tourism yearbook listing - North West,19/04/2017,0120493,475.00,Revenue,Diversified Business Communications UK,68712,,
Chorley Borough Council,http://statistics.data.gov.uk/id/local-authority/30UE,Corporate Management,1008,Customer & Digital,Contributions Parish Councils,40144,Grants and Subscriptions,5031,top up,05/04/2017,0120265,"1,636.00",Revenue,Eccleston Parish Council,17027,,
Chorley Borough Council,http://statistics.data.gov.uk/id/local-authority/30UE,Payments of Precepts to Parish,1018,Customer & Digital,Parish Council Tax,04500,Revenue Account Transfers,Balance,precept,05/04/2017,0120265,"44,090.00",Revenue,Eccleston Parish Council,17027,,
Chorley Borough Council,http://statistics.data.gov.uk/id/local-authority/30UE,Capital,Capital,Business Development & Growth,Main Contractor,03007,Capital Expenditure,Capital,Bat Survey at Yarrow Valley Country Park in accordance with quotation received 7th September 2016,05/04/2017,0120140,537.50,Capital,Ecology Services,58852,,
Chorley Borough Council,http://statistics.data.gov.uk/id/local-authority/30UE,Central Support Services,1009,Customer & Digital,Consultants` Fees,40077,Services,5027,2 x days for annual billing work.,12/04/2017,0120393,800.00,Revenue,EDM Consulting Ltd,55511,,
Chorley Borough Council,http://statistics.data.gov.uk/id/local-authority/30UE,Central Support Services,1009,Customer & Digital,Mobile Voice and Data,40086,Communication and Computing,5028,Mar-17,07/04/2017,0120330,571.71,Revenue,EE - Orange,16486,,
Chorley Borough Council,http://statistics.data.gov.uk/id/local-authority/30UE,Central Support Services,1009,Customer & Digital,Mobile Voice and Data,40086,Communication and Computing,5028,Mar-17,07/04/2017,0120329,"2,098.84",Revenue,EE LIMITED,63366,,
Chorley Borough Council,http://statistics.data.gov.uk/id/local-authority/30UE,Unapportionable Central OHeads,1009,Business Development & Growth,Planned Maintenance,20006,Repairs Maintenance & Alts,5005,PPM works for 2016.,26/04/2017,0120321,255.20,Revenue,Ellesmere Engineering Co Ltd,17520,,
Chorley Borough Council,http://statistics.data.gov.uk/id/local-authority/30UE,Unapportionable Central OHeads,1009,Business Development & Growth,General Repairs - Reactive,20004,Repairs Maintenance & Alts,5005,Reactive PRD Works WEF 1/4/17,26/04/2017,0120423,468.51,Revenue,Ellesmere Engineering Co Ltd,17520,,
Chorley Borough Council,http://statistics.data.gov.uk/id/local-authority/30UE,Unapportionable Central OHeads,1009,Business Development & Growth,General Repairs - Reactive,20004,Repairs Maintenance & Alts,5005,Reactive PRD Works WEF 1/4/17,26/04/2017,0120424,480.00,Revenue,Ellesmere Engineering Co Ltd,17520,,
Chorley Borough Council,http://statistics.data.gov.uk/id/local-authority/30UE,Unapportionable Central OHeads,1009,Customer & Digital,Depot Licences,40236,Miscellaneous Expenses,5034,FY 2017.2018 Payment for permit ref No SP3697CC/A001 for Bengal St Depot PR7 1SA as on invoice number N01181674,05/04/2017,0120189,"4,840.00",Revenue,Environment Agency,18256,,
Chorley Borough Council,http://statistics.data.gov.uk/id/local-authority/30UE,Central Support Services,1009,Early Intervention,Children's Activities,40188,Miscellaneous Expenses,5034,Delivery of Horse Riding for Junior Citizens on 23rd and 25th August,12/04/2017,0120403,360.00,Revenue,Eqwise Ltd,68974,,
Chorley Borough Council,http://statistics.data.gov.uk/id/local-authority/30UE,Capital,Capital,Business Development & Growth,Main Contractor,03007,Capital Expenditure,Capital,Planning Consultancy for Primrose Gardens,07/04/2017,0120167,"49,700.00",Capital,Eric Wright Construction Ltd,76464,,
Chorley Borough Council,http://statistics.data.gov.uk/id/local-authority/30UE,Central Support Services,1009,Customer & Digital,Computer Software-Maintenance,40107,Communication and Computing,5028,1 x ArcGIS for Desktop Basic (Single Use) Primary Maintenance,07/04/2017,0120049,318.75,Revenue,ESRI (UK) Ltd,19692,,
Chorley Borough Council,http://statistics.data.gov.uk/id/local-authority/30UE,Central Support Services,1009,Customer & Digital,Computer Software-Maintenance,40107,Communication and Computing,5028,4 x ArcGIS Desktop Basic (Single Use) Secondary Maintenance,07/04/2017,0120049,885.00,Revenue,ESRI (UK) Ltd,19692,,
Chorley Borough Council,http://statistics.data.gov.uk/id/local-authority/30UE,Central Support Services,1009,Customer & Digital,Computer Software-Maintenance,40107,Communication and Computing,5028,1 x ArcGIS Desktop Standard (Concurrent Use) Primary Maintenance,07/04/2017,0120049,"1,068.75",Revenue,ESRI (UK) Ltd,19692,,
Chorley Borough Council,http://statistics.data.gov.uk/id/local-authority/30UE,Central Support Services,1009,Customer & Digital,Computer Software-Maintenance,40107,Communication and Computing,5028,1 x ArcGIS Enterprise Standard (up to 4 cores) Maintenance,07/04/2017,0120049,"4,867.50",Revenue,ESRI (UK) Ltd,19692,,
Chorley Borough Council,http://statistics.data.gov.uk/id/local-authority/30UE,Central Support Services,1009,Customer & Digital,Computer Software-Maintenance,40107,Communication and Computing,5028,"1 x Level 2 ArcGIS Online Named User (5 users, 2,500 credits) Subscription Renewal",07/04/2017,0120049,"1,900.00",Revenue,ESRI (UK) Ltd,19692,,
Chorley Borough Council,http://statistics.data.gov.uk/id/local-authority/30UE,Central Support Services,1009,Customer & Digital,Computer Software-Maintenance,40107,Communication and Computing,5028,EDN Annual Subscription Renewal,07/04/2017,0120049,746.25,Revenue,ESRI (UK) Ltd,19692,,
Chorley Borough Council,http://statistics.data.gov.uk/id/local-authority/30UE,Central Support Services,1009,Customer & Digital,Computer Software-Maintenance,40107,Communication and Computing,5028,ProductivitySuite Government Site,07/04/2017,0120049,862.50,Revenue,ESRI (UK) Ltd,19692,,
Chorley Borough Council,http://statistics.data.gov.uk/id/local-authority/30UE,Corporate Management,1008,Customer & Digital,Contributions Parish Councils,40144,Grants and Subscriptions,5031,top up,05/04/2017,0120266,"1,709.00",Revenue,Euxton Parish Council,16838,,
Chorley Borough Council,http://statistics.data.gov.uk/id/local-authority/30UE,Payments of Precepts to Parish,1018,Customer & Digital,Parish Council Tax,04500,Revenue Account Transfers,Balance,precept,05/04/2017,0120266,"150,944.00",Revenue,Euxton Parish Council,16838,,
Chorley Borough Council,http://statistics.data.gov.uk/id/local-authority/30UE,Democratic Represent and  Mgnt,1007,Business Development & Growth,Maintenance/Nature Reserves,20045,Grounds Maintenance Costs,5013,"10  12 girth trees MM106 Apple Rootstock St Julien A Plum Rootstock Quince A pear Rootstock Varieties and numbers ",26/04/2017,0120634,540.00,Revenue,Everglades Nurseries Ltd,20202,,
Chorley Borough Council,http://statistics.data.gov.uk/id/local-authority/30UE,Democratic Represent and  Mgnt,1007,Business Development & Growth,Maintenance/Nature Reserves,20045,Grounds Maintenance Costs,5013,Maintenance Cost,26/04/2017,0120634,14.16,Revenue,Everglades Nurseries Ltd,20202,,
Chorley Borough Council,http://statistics.data.gov.uk/id/local-authority/30UE,Service Management & Support,1009,Customer & Digital,Supplies-Grounds Maintenance,40025,"Equipment, Furniture & Materia",5023,100 Berberis,28/04/2017,0120635,325.00,Revenue,Everglades Nurseries Ltd,20202,,
Chorley Borough Council,http://statistics.data.gov.uk/id/local-authority/30UE,Unapportionable Central OHeads,1009,Policy & Governance,HR Approved Training Expenses,17001,Indirect Employee Expenses,5002,Follow-up Coaching Tools for Managers 10/05/17 including travel expenses,05/04/2017,0120221,"1,305.30",Revenue,Evolving Edge Ltd,76455,,
Chorley Borough Council,http://statistics.data.gov.uk/id/local-authority/30UE,Service Management & Support,1009,Customer & Digital,Hire Of Vehicles and Plant,30028,Contrct Hire & Operating Lease,5018,Extended contract hire of tractor and side arm flail at price quoted from 01/04/2017 to 02/06/2017,26/04/2017,0120363,"1,490.76",Revenue,F R Sharrock Ltd,18091,,
Chorley Borough Council,http://statistics.data.gov.uk/id/local-authority/30UE,Development Control,1091,Customer & Digital,Consultants` Fees,40077,Services,5027,Phase 3 Clayton le Woods Landscape and masterplanning consultancy services during December 2016 (framework plan),12/04/2017,0120394,250.00,Revenue,FPCR Environment and Design Limited,76566,,
Chorley Borough Council,http://statistics.data.gov.uk/id/local-authority/30UE,Democratic Represent and  Mgnt,1007,Policy & Governance,Grants To Other Organisations,40127,Grants and Subscriptions,5031,grant,07/04/2017,0120352,250.00,Revenue,Friends of Coppull Library,76667,,
Chorley Borough Council,http://statistics.data.gov.uk/id/local-authority/30UE,Democratic Represent and  Mgnt,1007,Policy & Governance,Grants To Other Organisations,40127,Grants and Subscriptions,5031,grant,07/04/2017,0120353,250.00,Revenue,Friends of Coppull Library,76667,,
Chorley Borough Council,http://statistics.data.gov.uk/id/local-authority/30UE,Corporate Management,1008,Customer & Digital,Other Contributions,40145,Grants and Subscriptions,5031,ADDRESS REDACTED,07/04/2017,0120357,"3,822.00",Revenue,NAME REDACTED,73739,,
Chorley Borough Council,http://statistics.data.gov.uk/id/local-authority/30UE,Corporate Management,1008,Customer & Digital,Other Contributions,40145,Grants and Subscriptions,5031,ADDRESS REDACTED,26/04/2017,0120552,"4,706.00",Revenue,NAME REDACTED,74807,,
Chorley Borough Council,http://statistics.data.gov.uk/id/local-authority/30UE,Central Support Services,1009,Early Intervention,Miscellaneous Expenses,40200,Miscellaneous Expenses,5034,contribution,12/04/2017,0120349,530.00,Revenue,Grow to Share Clayton Brook,76660,,
Chorley Borough Council,http://statistics.data.gov.uk/id/local-authority/30UE,Corporate Management,1008,Customer & Digital,Contributions Parish Councils,40144,Grants and Subscriptions,5031,top up,05/04/2017,0120267,327.00,Revenue,Heapey Parish Council,17028,,
Chorley Borough Council,http://statistics.data.gov.uk/id/local-authority/30UE,Payments of Precepts to Parish,1018,Customer & Digital,Parish Council Tax,04500,Revenue Account Transfers,Balance,precept,05/04/2017,0120267,"8,813.00",Revenue,Heapey Parish Council,17028,,
Chorley Borough Council,http://statistics.data.gov.uk/id/local-authority/30UE,Corporate Management,1008,Customer & Digital,Contributions Parish Councils,40144,Grants and Subscriptions,5031,top up,05/04/2017,0120268,335.00,Revenue,Heath Charnock Parish Council,16208,,
Chorley Borough Council,http://statistics.data.gov.uk/id/local-authority/30UE,Payments of Precepts to Parish,1018,Customer & Digital,Parish Council Tax,04500,Revenue Account Transfers,Balance,precept,05/04/2017,0120268,"7,415.00",Revenue,Heath Charnock Parish Council,16208,,
Chorley Borough Council,http://statistics.data.gov.uk/id/local-authority/30UE,Corporate Management,1008,Customer & Digital,Contributions Parish Councils,40144,Grants and Subscriptions,5031,top up,05/04/2017,0120269,544.00,Revenue,Heskin Parish Council,17029,,
Chorley Borough Council,http://statistics.data.gov.uk/id/local-authority/30UE,Payments of Precepts to Parish,1018,Customer & Digital,Parish Council Tax,04500,Revenue Account Transfers,Balance,precept,05/04/2017,0120269,"11,625.00",Revenue,Heskin Parish Council,17029,,
Chorley Borough Council,http://statistics.data.gov.uk/id/local-authority/30UE,Central Support Services,1009,Customer & Digital,Computer Software-Maintenance,40107,Communication and Computing,5028,Software maintenance for Live VMware (system handle LIVE VMWARE) for period 01/04/2017 to 31/03/2018,21/04/2017,0120563,"3,570.00",Revenue,Hewlett - Packard Limited,22335,,
Chorley Borough Council,http://statistics.data.gov.uk/id/local-authority/30UE,Central Support Services,1009,Customer & Digital,Computer Software-Maintenance,40107,Communication and Computing,5028,Software maintenance for SRM VMware (system handle VMWARE-SRM) for period 01/04/2017 to 31/03/2018,21/04/2017,0120569,"1,329.84",Revenue,Hewlett - Packard Limited,22335,,
Chorley Borough Council,http://statistics.data.gov.uk/id/local-authority/30UE,Central Support Services,1009,Customer & Digital,Computer Software-Maintenance,40107,Communication and Computing,5028,Software maintenance for DR VMware (system handle CHORLEY BOROUGH02) for period 01/04/2017 to 31/03/2018,26/04/2017,0120614,"1,399.68",Revenue,Hewlett - Packard Limited,22335,,
Chorley Borough Council,http://statistics.data.gov.uk/id/local-authority/30UE,Capital,Capital,Business Development & Growth,Other Legal Fees,03020,Capital Expenditure,Capital,"For  legal advice on standard form JCT 2016 Design and Build Contract for Digital Office Park, Chorley",19/04/2017,0120496,"2,499.00",Capital,Hill Dickinson LLP,62638,,
Chorley Borough Council,http://statistics.data.gov.uk/id/local-authority/30UE,Capital,Capital,Policy & Governance,Stamp Duty,03026,Capital Expenditure,Capital,royal oak sdlt,21/04/2017,0120572,"92,000.00",Capital,HM Revenue & Customs,56499,,
Chorley Borough Council,http://statistics.data.gov.uk/id/local-authority/30UE,Capital,Capital,Policy & Governance,Stamp Duty,03026,Capital Expenditure,Capital,victory park sdlt,21/04/2017,0120573,"10,000.00",Capital,HM Revenue & Customs,56499,,
Chorley Borough Council,http://statistics.data.gov.uk/id/local-authority/30UE,Corporate Management,1008,Customer & Digital,Contributions Parish Councils,40144,Grants and Subscriptions,5031,top up,05/04/2017,0120270,167.00,Revenue,Hoghton Parish Council,16188,,
Chorley Borough Council,http://statistics.data.gov.uk/id/local-authority/30UE,Payments of Precepts to Parish,1018,Customer & Digital,Parish Council Tax,04500,Revenue Account Transfers,Balance,precept,05/04/2017,0120270,"5,833.00",Revenue,Hoghton Parish Council,16188,,
Chorley Borough Council,http://statistics.data.gov.uk/id/local-authority/30UE,Democratic Represent and  Mgnt,1007,Policy & Governance,Mayoral Hospitality,40123,Expenses,5030,Fee for Houghton Weavers for Mayor`s charity concert at Chorley Town Hall on 25th March 2017.,07/04/2017,0120279,"1,000.00",Revenue,Houghton Weavers (Management) Ltd,76665,,
Chorley Borough Council,http://statistics.data.gov.uk/id/local-authority/30UE,Development Control,1091,Chief Executive,General Subscriptions,40146,Grants and Subscriptions,5031,Provision of Ecological Advice for 2017.,21/04/2017,0120389,"2,009.76",Revenue,iNetwork (Tameside Council),19554,,
Chorley Borough Council,http://statistics.data.gov.uk/id/local-authority/30UE,Unapportionable Central OHeads,1009,Policy & Governance,HR Approved Training Expenses,17001,Indirect Employee Expenses,5002,Interview Skills - 28 March 2017,19/04/2017,0120359,664.50,Revenue,Instep UK Ltd,65300,,
Chorley Borough Council,http://statistics.data.gov.uk/id/local-authority/30UE,Unapportionable Central OHeads,1009,Policy & Governance,Miscellaneous Expenses,40200,Miscellaneous Expenses,5034,Quarter page advert for WYSC,26/04/2017,0120615,250.00,Revenue,It`s Manchester Limited t/a Primary Times ,76610,,
Chorley Borough Council,http://statistics.data.gov.uk/id/local-authority/30UE,Business Support,1095,Business Development & Growth,Miscellaneous Expenses,40200,Miscellaneous Expenses,5034,For Keynote Speaker for April Choose Chorley Business Network,19/04/2017,0120478,"5,000.00",Revenue,Jackie Gill Management Ltd,76671,,
Chorley Borough Council,http://statistics.data.gov.uk/id/local-authority/30UE,Unapportionable Central OHeads,1009,Policy & Governance,Miscellaneous Expenses,40200,Miscellaneous Expenses,5034,2 x Fun Zones for Chorley Grand Prix,28/04/2017,0120713,554.25,Revenue,JBS Products & Events,76617,,
Chorley Borough Council,http://statistics.data.gov.uk/id/local-authority/30UE,Service Management & Support,1009,Customer & Digital,Supplies-Grounds Maintenance,40025,"Equipment, Furniture & Materia",5023,Street Name Plate 1200 mm x 76 mm x 3.2 mm galv tube.  Product Code = SpCo009,21/04/2017,0120541,318.00,Revenue,Jewsons Limited,17844,,
Chorley Borough Council,http://statistics.data.gov.uk/id/local-authority/30UE,Service Management & Support,1009,Customer & Digital,Supplies-Grounds Maintenance,40025,"Equipment, Furniture & Materia",5023,Litter Picker 895mm - 1030007979.  Product Code = Sp1030007979,21/04/2017,0120541,123.50,Revenue,Jewsons Limited,17844,,
Chorley Borough Council,http://statistics.data.gov.uk/id/local-authority/30UE,Corporate Management,1008,Customer & Digital,Other Contributions,40145,Grants and Subscriptions,5031,ADDRESS REDACTED,28/04/2017,0120551,"4,706.00",Revenue,NAME REDACTED,73817,,
Chorley Borough Council,http://statistics.data.gov.uk/id/local-authority/30UE,Development Control,1091,Customer & Digital,Statutory Notices,40160,Miscellaneous Expenses,5034,Planning Public Notices to appear in the Chorley Guardian April 2016 to March 2017,07/04/2017,0120281,629.28,Revenue,Johnston Publishing Ltd,20072,,
Chorley Borough Council,http://statistics.data.gov.uk/id/local-authority/30UE,Parking Services,1066,Policy & Governance,Statutory Notices,40160,Miscellaneous Expenses,5034,public notice,12/04/2017,0120366,865.26,Revenue,Johnston Publishing Ltd,20072,,
Chorley Borough Council,http://statistics.data.gov.uk/id/local-authority/30UE,Parking Services,1066,Policy & Governance,Statutory Notices,40160,Miscellaneous Expenses,5034,Miscellaneous Expense,19/04/2017,0120512,"1,730.52",Revenue,Johnston Publishing Ltd,20072,,
Chorley Borough Council,http://statistics.data.gov.uk/id/local-authority/30UE,Parking Services,1066,Policy & Governance,Statutory Notices,40160,Miscellaneous Expenses,5034,Public notice in the Chorley Guardian for 21 days regarding the variation to Car Park Tariffs,05/04/2017,0120196,865.26,Revenue,Johnston Sweepers Limited,20778,,
Chorley Borough Council,http://statistics.data.gov.uk/id/local-authority/30UE,Capital,Capital,Early Intervention,Grants,03002,Capital Expenditure,Capital,ADDRESS REDACTED,05/04/2017,0120158,"3,070.00",Capital,K Berry Ltd,16421,,
Chorley Borough Council,http://statistics.data.gov.uk/id/local-authority/30UE,Capital,Capital,Early Intervention,Grants,03002,Capital Expenditure,Capital,ADDRESS REDACTED,12/04/2017,0120351,"3,040.00",Capital,K Berry Ltd,16421,,
Chorley Borough Council,http://statistics.data.gov.uk/id/local-authority/30UE,Capital,Capital,Early Intervention,Grants,03002,Capital Expenditure,Capital,ADDRESS REDACTED,12/04/2017,0120368,"3,250.00",Capital,K Berry Ltd,16421,,
Chorley Borough Council,http://statistics.data.gov.uk/id/local-authority/30UE,Corporate Management,1008,Customer & Digital,Other Contributions,40145,Grants and Subscriptions,5031,ADDRESS REDACTED,28/04/2017,0120719,493.56,Revenue,NAME REDACTED,73974,,
Chorley Borough Council,http://statistics.data.gov.uk/id/local-authority/30UE,Homelessness,1075,Early Intervention,External Contractor,40198,Miscellaneous Expenses,5034,Provision of Young Persons Housing Drop-In 2017/2018,21/04/2017,0120543,"3,750.00",Revenue,Key,61252,,
Chorley Borough Council,http://statistics.data.gov.uk/id/local-authority/30UE,Control Accounts,Control,Policy & Governance,General Balances,00100,Balance Sheet,Balance,sal ded,26/04/2017,0120603,"1,151.98",Revenue,Labour Councillors Association,17577,,
Chorley Borough Council,http://statistics.data.gov.uk/id/local-authority/30UE,Development Control,1091,Customer & Digital,Tools & Equipment - Purchase,40003,"Equipment, Furniture & Materia",5023,Service Level Agreement for Archaeology,19/04/2017,0120473,562.50,Revenue,Lancashire Archaeological Advisory Services,75761,,
Chorley Borough Council,http://statistics.data.gov.uk/id/local-authority/30UE,Service Management & Support,1009,Customer & Digital,Supplies-Highways,40026,"Equipment, Furniture & Materia",5023,Yearly order for the repair of Chorley Council street name plates to be paid monthly over 12 months,26/04/2017,0120112,478.63,Revenue,Lancashire County Council,17758,,
Chorley Borough Council,http://statistics.data.gov.uk/id/local-authority/30UE,Capital,Capital,Early Intervention,Grants,03002,Capital Expenditure,Capital,ADDRESS REDACTED,05/04/2017,0120161,"18,691.00",Capital,Lancashire County Council,17758,,
Chorley Borough Council,http://statistics.data.gov.uk/id/local-authority/30UE,Capital,Capital,Early Intervention,Grants,03002,Capital Expenditure,Capital,ADDRESS REDACTED,05/04/2017,0120162,"1,479.22",Capital,Lancashire County Council,17758,,
Chorley Borough Council,http://statistics.data.gov.uk/id/local-authority/30UE,Capital,Capital,Early Intervention,Grants,03002,Capital Expenditure,Capital,ADDRESS REDACTED,05/04/2017,0120163,"3,004.00",Capital,Lancashire County Council,17758,,
Chorley Borough Council,http://statistics.data.gov.uk/id/local-authority/30UE,Capital,Capital,Early Intervention,Grants,03002,Capital Expenditure,Capital,ADDRESS REDACTED,05/04/2017,0120164,"4,589.00",Capital,Lancashire County Council,17758,,
Chorley Borough Council,http://statistics.data.gov.uk/id/local-authority/30UE,Capital,Capital,Early Intervention,Grants,03002,Capital Expenditure,Capital,ADDRESS REDACTED,05/04/2017,0120165,"2,597.00",Capital,Lancashire County Council,17758,,
Chorley Borough Council,http://statistics.data.gov.uk/id/local-authority/30UE,Capital,Capital,Early Intervention,Grants,03002,Capital Expenditure,Capital,ADDRESS REDACTED,05/04/2017,0120166,"4,999.00",Capital,Lancashire County Council,17758,,
Chorley Borough Council,http://statistics.data.gov.uk/id/local-authority/30UE,Business Support,1095,Policy & Governance,External Contractor,40198,Miscellaneous Expenses,5034,Roundabout advertising sign,19/04/2017,0120226,"2,450.00",Revenue,Lancashire County Council,20027,,
Chorley Borough Council,http://statistics.data.gov.uk/id/local-authority/30UE,Business Support,1095,Policy & Governance,Legal Fees,40171,Miscellaneous Expenses,5034,section 278 agreement,19/04/2017,0120456,"2,250.00",Revenue,Lancashire County Council,17758,,
Chorley Borough Council,http://statistics.data.gov.uk/id/local-authority/30UE,Democratic Represent and  Mgnt,1007,Policy & Governance,Miscellaneous Expenses,40200,Miscellaneous Expenses,5034,Delivery of Somme educational provision for Grant Funding,26/04/2017,0120626,"2,000.00",Revenue,Lancashire County Council- Heritage Learning,75351,,
Chorley Borough Council,http://statistics.data.gov.uk/id/local-authority/30UE,Corporate Management,1008,Policy & Governance,Other Fees,40212,Miscellaneous Expenses,5034,4 weekly payment for meal subsidy,26/04/2017,0120584,917.30,Revenue,Lancashire Fayre,62967,,
Chorley Borough Council,http://statistics.data.gov.uk/id/local-authority/30UE,Corporate Management,1008,Customer & Digital,Other Contributions,40145,Grants and Subscriptions,5031,ADDRESS REDACTED,19/04/2017,0120459,"4,706.00",Revenue,NAME REDACTED,74806,,
Chorley Borough Council,http://statistics.data.gov.uk/id/local-authority/30UE,Building Control,1090,Policy & Governance,Car Leasing Payment,14100,Direct Employee Expenses,5001,Car Lease Scheme,21/04/2017,0120548,"3,569.52",Revenue,Lex Autolease Ltd,70682,,
Chorley Borough Council,http://statistics.data.gov.uk/id/local-authority/30UE,Building Control,1090,Policy & Governance,Car Leasing Payment,14100,Direct Employee Expenses,5001,Car Lease Scheme,21/04/2017,0120548,317.27,Revenue,Lex Autolease Ltd,70682,,
Chorley Borough Council,http://statistics.data.gov.uk/id/local-authority/30UE,Control Accounts,Control,Policy & Governance,Manual Control Account,00001,Balance Sheet,Balance,Balance Sheet,21/04/2017,0120548,-317.27,Revenue,Lex Autolease Ltd,70682,,
Chorley Borough Council,http://statistics.data.gov.uk/id/local-authority/30UE,Unapportionable Central OHeads,1009,Customer & Digital,Publications,40054,"Printing, Stationery & General",5026,ryde on rating,05/04/2017,0120243,377.00,Revenue,Lexis Nexis UK,16688,,
Chorley Borough Council,http://statistics.data.gov.uk/id/local-authority/30UE,Central Support Services,1009,Customer & Digital,Computer Software-Maintenance,40107,Communication and Computing,5028,Lightning Conductor 2013 Farm Software Assurance - renewal period 12 months from 1st April 2017 to 31st March 2018,05/04/2017,0120113,614.18,Revenue,Lightning Tools Ltd,57633,,
Chorley Borough Council,http://statistics.data.gov.uk/id/local-authority/30UE,Democratic Represent and  Mgnt,1007,Policy & Governance,Exhibitions & Special Events,40158,Miscellaneous Expenses,5034,Provision of Theatre performance of ``Midnight and Anna`` 10th and 11th April 2017. 4 x performances,19/04/2017,0120474,300.00,Revenue,Little World Ltd (trading as Horse + Bamboo),76664,,
Chorley Borough Council,http://statistics.data.gov.uk/id/local-authority/30UE,Democratic Represent and  Mgnt,1007,Chief Executive,General Subscriptions,40146,Grants and Subscriptions,5031,LGA Subscription 2017/2018,12/04/2017,0120392,"10,450.00",Revenue,Local Government Association,16243,,
Chorley Borough Council,http://statistics.data.gov.uk/id/local-authority/30UE,Unapportionable Central OHeads,1009,Policy & Governance,Stationery,40050,"Printing, Stationery & General",5026,Plantronics SupraPlus Headset with Voice Tube/Monaural,07/04/2017,0120289,359.65,Revenue,Lyreco UK Ltd,17623,,
Chorley Borough Council,http://statistics.data.gov.uk/id/local-authority/30UE,Homelessness,1075,Early Intervention,Stationery,40050,"Printing, Stationery & General",5026,Addis President conference thermal pump pot,07/04/2017,0120290,73.78,Revenue,Lyreco UK Ltd,17623,,
Chorley Borough Council,http://statistics.data.gov.uk/id/local-authority/30UE,Homelessness,1075,Early Intervention,Stationery,40050,"Printing, Stationery & General",5026,Legamaster Mobile Multiboard,07/04/2017,0120290,219.62,Revenue,Lyreco UK Ltd,17623,,
Chorley Borough Council,http://statistics.data.gov.uk/id/local-authority/30UE,Homelessness,1075,Early Intervention,Stationery,40050,"Printing, Stationery & General",5026,Legamaster White Board starter set,07/04/2017,0120290,29.96,Revenue,Lyreco UK Ltd,17623,,
Chorley Borough Council,http://statistics.data.gov.uk/id/local-authority/30UE,Capital,Capital,Early Intervention,Grants,03002,Capital Expenditure,Capital,ADDRESS REDACTED,12/04/2017,0120369,"3,610.00",Capital,M.J Park Building Contractors,20367,,
Chorley Borough Council,http://statistics.data.gov.uk/id/local-authority/30UE,Capital,Capital,Business Development & Growth,Main Contractor,03007,Capital Expenditure,Capital,Asbestos Survey Prior to Refurb,07/04/2017,0120182,425.00,Capital,Malrod Insulations Ltd,17449,,
Chorley Borough Council,http://statistics.data.gov.uk/id/local-authority/30UE,Unapportionable Central OHeads,1009,Policy & Governance,Agency Staff,13000,Direct Employee Expenses,5001,AGENCY COST,12/04/2017,0120334,469.08,Revenue,Matrix SCM Ltd,22128,,
Chorley Borough Council,http://statistics.data.gov.uk/id/local-authority/30UE,Housing Strategy,1069,Policy & Governance,Agency Staff,13000,Direct Employee Expenses,5001,AGENCY COST,12/04/2017,0120334,740.60,Revenue,Matrix SCM Ltd,22128,,
Chorley Borough Council,http://statistics.data.gov.uk/id/local-authority/30UE,Unapportionable Central OHeads,1009,Policy & Governance,Agency Staff,13000,Direct Employee Expenses,5001,AGENCY COST,19/04/2017,0120479,375.26,Revenue,Matrix SCM Ltd,22128,,
Chorley Borough Council,http://statistics.data.gov.uk/id/local-authority/30UE,Unapportionable Central OHeads,1009,Policy & Governance,Agency Staff,13000,Direct Employee Expenses,5001,AGENCY COST,21/04/2017,0120602,278.21,Revenue,Matrix SCM Ltd,22128,,
Chorley Borough Council,http://statistics.data.gov.uk/id/local-authority/30UE,Housing Strategy,1069,Policy & Governance,Agency Staff,13000,Direct Employee Expenses,5001,AGENCY COST,21/04/2017,0120602,"1,333.08",Revenue,Matrix SCM Ltd,22128,,
Chorley Borough Council,http://statistics.data.gov.uk/id/local-authority/30UE,Corporate Management,1008,Customer & Digital,Contributions Parish Councils,40144,Grants and Subscriptions,5031,top up,05/04/2017,0120271,794.00,Revenue,Mawdesley Parish Council,17570,,
Chorley Borough Council,http://statistics.data.gov.uk/id/local-authority/30UE,Payments of Precepts to Parish,1018,Customer & Digital,Parish Council Tax,04500,Revenue Account Transfers,Balance,precept,05/04/2017,0120271,"27,956.00",Revenue,Mawdesley Parish Council,17570,,
Chorley Borough Council,http://statistics.data.gov.uk/id/local-authority/30UE,Elections,1012,Policy & Governance,Rent/Hire Of Premises,20017,Premises Rents,5007,Room Hire for Polling Station for LCC Elections 4 May 2017,12/04/2017,0120220,360.00,Revenue,Mawdesley Village Hall,18423,,
Chorley Borough Council,http://statistics.data.gov.uk/id/local-authority/30UE,Corporate Management,1008,Customer & Digital,Other Contributions,40145,Grants and Subscriptions,5031,ADDRESS REDACTED,28/04/2017,0120720,"4,706.00",Revenue,NAME REDACTED,73756,,
Chorley Borough Council,http://statistics.data.gov.uk/id/local-authority/30UE,Unapportionable Central OHeads,1009,Policy & Governance,Miscellaneous Expenses,40200,Miscellaneous Expenses,5034,Ambulance and Paramedic for the Chorley Grand Prix,26/04/2017,0120564,600.00,Revenue,Mersey Medical Services Ltd,76577,,
Chorley Borough Council,http://statistics.data.gov.uk/id/local-authority/30UE,Capital,Capital,Customer & Digital,Equipment,03014,Capital Expenditure,Capital,"240 litre wheeled bin including RFID micro-chip.   Colour : anthracite grey RAL 7016,  Chorley Council logo.    ",21/04/2017,0120379,"11,603.20",Capital,MGB Plastics Ltd,18624,,
Chorley Borough Council,http://statistics.data.gov.uk/id/local-authority/30UE,Capital,Capital,Customer & Digital,Equipment,03014,Capital Expenditure,Capital,"240 litre wheeled bin including RFID micro-chip.   Colour : anthracite grey RAL 7016,  Chorley Council logo.    ",21/04/2017,0120444,"11,603.20",Capital,MGB Plastics Ltd,18624,,
Chorley Borough Council,http://statistics.data.gov.uk/id/local-authority/30UE,Capital,Capital,Customer & Digital,Equipment,03014,Capital Expenditure,Capital,Supply of 220 litre composter.Colour :black,21/04/2017,0120445,350.00,Capital,MGB Plastics Ltd,18624,,
Chorley Borough Council,http://statistics.data.gov.uk/id/local-authority/30UE,Capital,Capital,Customer & Digital,Equipment,03014,Capital Expenditure,Capital,"240 litre wheeled bin including RFID micro-chip.   Colour : anthracite grey RAL 7016,  Chorley Council logo.   ",21/04/2017,0120446,"11,603.20",Capital,MGB Plastics Ltd,18624,,
Chorley Borough Council,http://statistics.data.gov.uk/id/local-authority/30UE,Capital,Capital,Customer & Digital,Equipment,03014,Capital Expenditure,Capital,"240 litre wheeled bin including RFID micro-chip.   Colour : anthracite grey RAL 7016,  Chorley Council logo.    ",21/04/2017,0120447,"11,603.20",Capital,MGB Plastics Ltd,18624,,
Chorley Borough Council,http://statistics.data.gov.uk/id/local-authority/30UE,Capital,Capital,Early Intervention,Grants,03002,Capital Expenditure,Capital,ADDRESS REDACTED,12/04/2017,0120350,"4,368.61",Capital,Mint Northwest Ltd,65607,,
Chorley Borough Council,http://statistics.data.gov.uk/id/local-authority/30UE,Private Sector HSG Renewal,1073,Early Intervention,External Contractor,40198,Miscellaneous Expenses,5034,ADDRESS REDACTED,28/04/2017,0120685,320.00,Revenue,Mobility Care Services,70841,,
Chorley Borough Council,http://statistics.data.gov.uk/id/local-authority/30UE,Private Sector HSG Renewal,1073,Early Intervention,External Contractor,40198,Miscellaneous Expenses,5034,ADDRESS REDACTED,28/04/2017,0120686,310.00,Revenue,Mobility Care Services,70841,,
Chorley Borough Council,http://statistics.data.gov.uk/id/local-authority/30UE,Private Sector HSG Renewal,1073,Early Intervention,External Contractor,40198,Miscellaneous Expenses,5034,ADDRESS REDACTED,28/04/2017,0120693,250.00,Revenue,Mobility Care Services,70841,,
Chorley Borough Council,http://statistics.data.gov.uk/id/local-authority/30UE,Private Sector HSG Renewal,1073,Early Intervention,External Contractor,40198,Miscellaneous Expenses,5034,ADDRESS REDACTED,28/04/2017,0120694,490.00,Revenue,Mobility Care Services,70841,,
Chorley Borough Council,http://statistics.data.gov.uk/id/local-authority/30UE,Central Support Services,1009,Customer & Digital,Computer Software-Maintenance,40107,Communication and Computing,5028,Annual fee for system maintenance and support 01/04/17 to 31/03/18,07/04/2017,0120202,"7,010.00",Revenue,Modern Mindset LTD,51367,,
Chorley Borough Council,http://statistics.data.gov.uk/id/local-authority/30UE,Central Support Services,1009,Customer & Digital,Computer Software-Maintenance,40107,Communication and Computing,5028,Restricted mobile application 01/04/17 to 31/03/18,07/04/2017,0120202,"3,000.00",Revenue,Modern Mindset LTD,51367,,
Chorley Borough Council,http://statistics.data.gov.uk/id/local-authority/30UE,Service Management & Support,1009,Customer & Digital,Supplies-Grounds Maintenance,40025,"Equipment, Furniture & Materia",5023,"Works carried out @ The Goit footpath, Brinscall",07/04/2017,0120192,280.00,Revenue,NAME REDACTED,16710,,
Chorley Borough Council,http://statistics.data.gov.uk/id/local-authority/30UE,Democratic Represent and  Mgnt,1007,Business Development & Growth,External Contractor,40198,Miscellaneous Expenses,5034,Creation of extra car parking at Crosse Hall Allotments,26/04/2017,0120588,600.00,Revenue,NAME REDACTED,16710,,
Chorley Borough Council,http://statistics.data.gov.uk/id/local-authority/30UE,Corporate Management,1008,Customer & Digital,Other Contributions,40145,Grants and Subscriptions,5031,ADDRESS REDACTED,19/04/2017,0120460,"4,676.40",Revenue,NAME REDACTED,73931,,
Chorley Borough Council,http://statistics.data.gov.uk/id/local-authority/30UE,Corporate Management,1008,Customer & Digital,Other Contributions,40145,Grants and Subscriptions,5031,ADDRESS REDACTED,07/04/2017,0120354,"4,652.40",Revenue,NAME REDACTED,73859,,
Chorley Borough Council,http://statistics.data.gov.uk/id/local-authority/30UE,Service Management & Support,1009,Customer & Digital,Training Course Fees,17010,Indirect Employee Expenses,5002,L.2 Diploma in WI3 Horticulture (Tution Fee) 450.00 (M 165896),19/04/2017,0120475,450.00,Revenue,Myerscough College,18214,,
Chorley Borough Council,http://statistics.data.gov.uk/id/local-authority/30UE,Corporate Management,1008,Customer & Digital,Other Contributions,40145,Grants and Subscriptions,5031,ADDRESS REDACTED,19/04/2017,0120461,"4,912.80",Revenue,NAME REDACTED,73860,,
Chorley Borough Council,http://statistics.data.gov.uk/id/local-authority/30UE,Business Support,1095,Policy & Governance,Easements,20019,Premises Rents,5007,internal assessment costs,28/04/2017,0120346,"1,000.00",Revenue,National Grid plc,56732,,
Chorley Borough Council,http://statistics.data.gov.uk/id/local-authority/30UE,Service Management & Support,1009,Customer & Digital,Refuse Collection,20037,Cleaning and Domestic Supplies,5012,Exchange of 35 yrd green waste skip as per your quote from Bengal St depot. use this order from 01/04/2016  to 31/03/2017,19/04/2017,0120404,280.00,Revenue,Neales Waste Management,17583,,
Chorley Borough Council,http://statistics.data.gov.uk/id/local-authority/30UE,Service Management & Support,1009,Customer & Digital,Refuse Collection,20037,Cleaning and Domestic Supplies,5012,Charges for green waste removal from Bengal St depot as per your quote. use this order No from 01/04/2016 through 31/03/2017,19/04/2017,0120404,639.02,Revenue,Neales Waste Management,17583,,
Chorley Borough Council,http://statistics.data.gov.uk/id/local-authority/30UE,Service Management & Support,1009,Customer & Digital,Refuse Collection,20037,Cleaning and Domestic Supplies,5012,Cleaning and Domestic Supplies,19/04/2017,0120404,"1,715.70",Revenue,Neales Waste Management,17583,,
Chorley Borough Council,http://statistics.data.gov.uk/id/local-authority/30UE,Business Support,1095,Business Development & Growth,Grants To Other Organisations,40127,Grants and Subscriptions,5031,sib grant,12/04/2017,0120348,250.00,Revenue,NAME REDACTED,76661,,
Chorley Borough Council,http://statistics.data.gov.uk/id/local-authority/30UE,Unapportionable Central OHeads,1009,Chief Executive,Postages,40082,Communication and Computing,5028,Credit for Franking Machine at Town Hall Offices,07/04/2017,0120345,"1,000.00",Revenue,Neopost Ltd RCB Credifon A/C,20009,,
Chorley Borough Council,http://statistics.data.gov.uk/id/local-authority/30UE,Democratic Represent and  Mgnt,1007,Policy & Governance,Publications,40054,"Printing, Stationery & General",5026,Rural Services Network Service Charge 2017?2018,19/04/2017,0120476,515.00,Revenue,North Kesteven District Council,65910,,
Chorley Borough Council,http://statistics.data.gov.uk/id/local-authority/30UE,Service Management & Support,1009,Customer & Digital,Hire Of Vehicles and Plant,30028,Contrct Hire & Operating Lease,5018,Outstanding charges for hire vehicles as per invoice number SL04216653,12/04/2017,0120415,300.83,Revenue,Northgate Vehicle Hire (NW) Ltd,17360,,
Chorley Borough Council,http://statistics.data.gov.uk/id/local-authority/30UE,Parking Services,1066,Business Development & Growth,Electricity,20013,Energy Costs,5006,Energy Costs,12/04/2017,0120387,1.04,Revenue,Npower Commercial Gas,16814,,
Chorley Borough Council,http://statistics.data.gov.uk/id/local-authority/30UE,Parking Services,1066,Business Development & Growth,Electricity,20013,Energy Costs,5006,Energy Costs,12/04/2017,0120387,103.60,Revenue,Npower Commercial Gas,16814,,
Chorley Borough Council,http://statistics.data.gov.uk/id/local-authority/30UE,Central Support Services,1009,Business Development & Growth,Electricity,20013,Energy Costs,5006,Energy Costs,12/04/2017,0120387,256.32,Revenue,Npower Commercial Gas,16814,,
Chorley Borough Council,http://statistics.data.gov.uk/id/local-authority/30UE,Democratic Represent and  Mgnt,1007,Business Development & Growth,Electricity,20013,Energy Costs,5006,Energy Costs,28/04/2017,0120707,170.67,Revenue,Npower Commercial Gas,16814,,
Chorley Borough Council,http://statistics.data.gov.uk/id/local-authority/30UE,Democratic Represent and  Mgnt,1007,Business Development & Growth,Electricity,20013,Energy Costs,5006,Energy Costs,28/04/2017,0120707,15.00,Revenue,Npower Commercial Gas,16814,,
Chorley Borough Council,http://statistics.data.gov.uk/id/local-authority/30UE,Service Management & Support,1009,Business Development & Growth,Electricity,20013,Energy Costs,5006,Energy Costs,28/04/2017,0120707,53.05,Revenue,Npower Commercial Gas,16814,,
Chorley Borough Council,http://statistics.data.gov.uk/id/local-authority/30UE,Democratic Represent and  Mgnt,1007,Business Development & Growth,Electricity,20013,Energy Costs,5006,Energy Costs,28/04/2017,0120707,9.16,Revenue,Npower Commercial Gas,16814,,
Chorley Borough Council,http://statistics.data.gov.uk/id/local-authority/30UE,Economic Development,1096,Business Development & Growth,Electricity,20013,Energy Costs,5006,Energy Costs,28/04/2017,0120707,"4,053.17",Revenue,Npower Commercial Gas,16814,,
Chorley Borough Council,http://statistics.data.gov.uk/id/local-authority/30UE,Democratic Represent and  Mgnt,1007,Business Development & Growth,Electricity,20013,Energy Costs,5006,Energy Costs,28/04/2017,0120707,161.92,Revenue,Npower Commercial Gas,16814,,
Chorley Borough Council,http://statistics.data.gov.uk/id/local-authority/30UE,Democratic Represent and  Mgnt,1007,Business Development & Growth,Electricity,20013,Energy Costs,5006,Energy Costs,28/04/2017,0120707,51.96,Revenue,Npower Commercial Gas,16814,,
Chorley Borough Council,http://statistics.data.gov.uk/id/local-authority/30UE,Democratic Represent and  Mgnt,1007,Business Development & Growth,Electricity,20013,Energy Costs,5006,Energy Costs,28/04/2017,0120707,302.50,Revenue,Npower Commercial Gas,16814,,
Chorley Borough Council,http://statistics.data.gov.uk/id/local-authority/30UE,Community Development,1097,Business Development & Growth,Electricity,20013,Energy Costs,5006,Energy Costs,28/04/2017,0120707,493.59,Revenue,Npower Commercial Gas,16814,,
Chorley Borough Council,http://statistics.data.gov.uk/id/local-authority/30UE,Community Development,1097,Business Development & Growth,Electricity,20013,Energy Costs,5006,Energy Costs,28/04/2017,0120707,33.70,Revenue,Npower Commercial Gas,16814,,
Chorley Borough Council,http://statistics.data.gov.uk/id/local-authority/30UE,Community Development,1097,Business Development & Growth,Electricity,20013,Energy Costs,5006,Energy Costs,28/04/2017,0120707,439.75,Revenue,Npower Commercial Gas,16814,,
Chorley Borough Council,http://statistics.data.gov.uk/id/local-authority/30UE,Democratic Represent and  Mgnt,1007,Business Development & Growth,Electricity,20013,Energy Costs,5006,Energy Costs,28/04/2017,0120707,34.44,Revenue,Npower Commercial Gas,16814,,
Chorley Borough Council,http://statistics.data.gov.uk/id/local-authority/30UE,Democratic Represent and  Mgnt,1007,Business Development & Growth,Electricity,20013,Energy Costs,5006,Energy Costs,28/04/2017,0120707,375.34,Revenue,Npower Commercial Gas,16814,,
Chorley Borough Council,http://statistics.data.gov.uk/id/local-authority/30UE,Democratic Represent and  Mgnt,1007,Business Development & Growth,Electricity,20013,Energy Costs,5006,Energy Costs,28/04/2017,0120707,886.28,Revenue,Npower Commercial Gas,16814,,
Chorley Borough Council,http://statistics.data.gov.uk/id/local-authority/30UE,Democratic Represent and  Mgnt,1007,Business Development & Growth,Electricity,20013,Energy Costs,5006,Energy Costs,28/04/2017,0120707,239.37,Revenue,Npower Commercial Gas,16814,,
Chorley Borough Council,http://statistics.data.gov.uk/id/local-authority/30UE,Corporate Management,1008,Business Development & Growth,Electricity,20013,Energy Costs,5006,Energy Costs,28/04/2017,0120707,8.84,Revenue,Npower Commercial Gas,16814,,
Chorley Borough Council,http://statistics.data.gov.uk/id/local-authority/30UE,Corporate Management,1008,Business Development & Growth,Electricity,20013,Energy Costs,5006,Energy Costs,28/04/2017,0120707,4.56,Revenue,Npower Commercial Gas,16814,,
Chorley Borough Council,http://statistics.data.gov.uk/id/local-authority/30UE,Corporate Management,1008,Business Development & Growth,Electricity,20013,Energy Costs,5006,Energy Costs,28/04/2017,0120707,234.23,Revenue,Npower Commercial Gas,16814,,
Chorley Borough Council,http://statistics.data.gov.uk/id/local-authority/30UE,Democratic Represent and  Mgnt,1007,Business Development & Growth,Electricity,20013,Energy Costs,5006,Energy Costs,28/04/2017,0120707,354.27,Revenue,Npower Commercial Gas,16814,,
Chorley Borough Council,http://statistics.data.gov.uk/id/local-authority/30UE,Economic Development,1096,Business Development & Growth,Electricity,20013,Energy Costs,5006,Energy Costs,28/04/2017,0120707,193.38,Revenue,Npower Commercial Gas,16814,,
Chorley Borough Council,http://statistics.data.gov.uk/id/local-authority/30UE,Democratic Represent and  Mgnt,1007,Business Development & Growth,Electricity,20013,Energy Costs,5006,Energy Costs,28/04/2017,0120707,13.48,Revenue,Npower Commercial Gas,16814,,
Chorley Borough Council,http://statistics.data.gov.uk/id/local-authority/30UE,Economic Development,1096,Business Development & Growth,Electricity,20013,Energy Costs,5006,Energy Costs,28/04/2017,0120707,8.84,Revenue,Npower Commercial Gas,16814,,
Chorley Borough Council,http://statistics.data.gov.uk/id/local-authority/30UE,Homelessness,1075,Business Development & Growth,Electricity,20013,Energy Costs,5006,Energy Costs,28/04/2017,0120707,"1,158.87",Revenue,Npower Commercial Gas,16814,,
Chorley Borough Council,http://statistics.data.gov.uk/id/local-authority/30UE,Homelessness,1075,Business Development & Growth,Electricity,20013,Energy Costs,5006,Energy Costs,28/04/2017,0120707,235.36,Revenue,Npower Commercial Gas,16814,,
Chorley Borough Council,http://statistics.data.gov.uk/id/local-authority/30UE,Homelessness,1075,Business Development & Growth,Electricity,20013,Energy Costs,5006,Energy Costs,28/04/2017,0120707,161.75,Revenue,Npower Commercial Gas,16814,,
Chorley Borough Council,http://statistics.data.gov.uk/id/local-authority/30UE,Recreation & Sport,1037,Business Development & Growth,Electricity,20013,Energy Costs,5006,Energy Costs,28/04/2017,0120707,152.89,Revenue,Npower Commercial Gas,16814,,
Chorley Borough Council,http://statistics.data.gov.uk/id/local-authority/30UE,Recreation & Sport,1037,Business Development & Growth,Electricity,20013,Energy Costs,5006,Energy Costs,28/04/2017,0120707,165.32,Revenue,Npower Commercial Gas,16814,,
Chorley Borough Council,http://statistics.data.gov.uk/id/local-authority/30UE,Democratic Represent and  Mgnt,1007,Business Development & Growth,Electricity,20013,Energy Costs,5006,Energy Costs,28/04/2017,0120707,50.96,Revenue,Npower Commercial Gas,16814,,
Chorley Borough Council,http://statistics.data.gov.uk/id/local-authority/30UE,Unapportionable Central OHeads,1009,Business Development & Growth,Electricity,20013,Energy Costs,5006,Energy Costs,28/04/2017,0120708,"3,217.93",Revenue,Npower Commercial Gas,16814,,
Chorley Borough Council,http://statistics.data.gov.uk/id/local-authority/30UE,Unapportionable Central OHeads,1009,Business Development & Growth,Electricity,20013,Energy Costs,5006,Energy Costs,28/04/2017,0120708,"3,086.54",Revenue,Npower Commercial Gas,16814,,
Chorley Borough Council,http://statistics.data.gov.uk/id/local-authority/30UE,Unapportionable Central OHeads,1009,Business Development & Growth,Electricity,20013,Energy Costs,5006,Energy Costs,28/04/2017,0120708,"3,057.44",Revenue,Npower Commercial Gas,16814,,
Chorley Borough Council,http://statistics.data.gov.uk/id/local-authority/30UE,Unapportionable Central OHeads,1009,Business Development & Growth,Electricity,20013,Energy Costs,5006,Energy Costs,28/04/2017,0120708,986.99,Revenue,Npower Commercial Gas,16814,,
Chorley Borough Council,http://statistics.data.gov.uk/id/local-authority/30UE,Unapportionable Central OHeads,1009,Business Development & Growth,Electricity,20013,Energy Costs,5006,Energy Costs,28/04/2017,0120708,891.81,Revenue,Npower Commercial Gas,16814,,
Chorley Borough Council,http://statistics.data.gov.uk/id/local-authority/30UE,Unapportionable Central OHeads,1009,Business Development & Growth,Electricity,20013,Energy Costs,5006,Energy Costs,28/04/2017,0120708,842.59,Revenue,Npower Commercial Gas,16814,,
Chorley Borough Council,http://statistics.data.gov.uk/id/local-authority/30UE,Unapportionable Central OHeads,1009,Business Development & Growth,Electricity,20013,Energy Costs,5006,Energy Costs,28/04/2017,0120708,"2,104.63",Revenue,Npower Commercial Gas,16814,,
Chorley Borough Council,http://statistics.data.gov.uk/id/local-authority/30UE,Unapportionable Central OHeads,1009,Business Development & Growth,Electricity,20013,Energy Costs,5006,Energy Costs,28/04/2017,0120708,"2,120.12",Revenue,Npower Commercial Gas,16814,,
Chorley Borough Council,http://statistics.data.gov.uk/id/local-authority/30UE,Unapportionable Central OHeads,1009,Business Development & Growth,Electricity,20013,Energy Costs,5006,Energy Costs,28/04/2017,0120708,"2,110.31",Revenue,Npower Commercial Gas,16814,,
Chorley Borough Council,http://statistics.data.gov.uk/id/local-authority/30UE,Democratic Represent and  Mgnt,1007,Business Development & Growth,Electricity,20013,Energy Costs,5006,Energy Costs,28/04/2017,0120708,154.53,Revenue,Npower Commercial Gas,16814,,
Chorley Borough Council,http://statistics.data.gov.uk/id/local-authority/30UE,Democratic Represent and  Mgnt,1007,Business Development & Growth,Electricity,20013,Energy Costs,5006,Energy Costs,28/04/2017,0120708,146.30,Revenue,Npower Commercial Gas,16814,,
Chorley Borough Council,http://statistics.data.gov.uk/id/local-authority/30UE,Democratic Represent and  Mgnt,1007,Business Development & Growth,Electricity,20013,Energy Costs,5006,Energy Costs,28/04/2017,0120708,170.41,Revenue,Npower Commercial Gas,16814,,
Chorley Borough Council,http://statistics.data.gov.uk/id/local-authority/30UE,Business Support,1095,Business Development & Growth,Electricity,20013,Energy Costs,5006,Energy Costs,07/04/2017,0120242,646.66,Revenue,Opus Energy Ltd,65093,,
Chorley Borough Council,http://statistics.data.gov.uk/id/local-authority/30UE,Central Support Services,1009,Customer & Digital,Computer Software-Maintenance,40107,Communication and Computing,5028,FULL USE - Oracle Database Standard Edition One - Processor Perpetual 1/4/2017 - 31/3/2018,12/04/2017,0120388,"1,397.79",Revenue,Oracle Corporation UK Ltd,61786,,
Chorley Borough Council,http://statistics.data.gov.uk/id/local-authority/30UE,Capital,Capital,Business Development & Growth,Other Capital Related Fees,03024,Capital Expenditure,Capital,Primrose Gardens February 2017,07/04/2017,0120284,"4,462.32",Capital,Perfect Circle JV Ltd,76438,,
Chorley Borough Council,http://statistics.data.gov.uk/id/local-authority/30UE,Business Support,1095,Customer & Digital,Professional Fees,40063,Services,5027,Car Park Feasibility Study,28/04/2017,0120297,"3,232.95",Revenue,Perfect Circle JV Ltd,76438,,
Chorley Borough Council,http://statistics.data.gov.uk/id/local-authority/30UE,Capital,Capital,Business Development & Growth,Other Capital Related Fees,03024,Capital Expenditure,Capital,Primrose Gardens February 2017,07/04/2017,0120315,"3,121.38",Capital,Perfect Circle JV Ltd,76438,,
Chorley Borough Council,http://statistics.data.gov.uk/id/local-authority/30UE,Central Support Services,1009,Early Intervention,External Contractor,40198,Miscellaneous Expenses,5034,Pest control duties for 2016/17,05/04/2017,0120188,340.00,Revenue,Peter L Johnson,16727,,
Chorley Borough Council,http://statistics.data.gov.uk/id/local-authority/30UE,Central Support Services,1009,Early Intervention,External Contractor,40198,Miscellaneous Expenses,5034,Pest Control Duties within Chorley Council,26/04/2017,0120590,340.00,Revenue,Peter L Johnson,16727,,
Chorley Borough Council,http://statistics.data.gov.uk/id/local-authority/30UE,Central Support Services,1009,Early Intervention,External Contractor,40198,Miscellaneous Expenses,5034,Pest Control Duties within Chorley Council,26/04/2017,0120591,340.00,Revenue,Peter L Johnson,16727,,
Chorley Borough Council,http://statistics.data.gov.uk/id/local-authority/30UE,Economic Development,1096,Business Development & Growth,Miscellaneous Expenses,40200,Miscellaneous Expenses,5034,For boost your business workshop 29/3/17,21/04/2017,0120542,250.00,Revenue,Phil Owen,75756,,
Chorley Borough Council,http://statistics.data.gov.uk/id/local-authority/30UE,Capital,Capital,Customer & Digital,Consultants Fees,03025,Capital Expenditure,Capital,"Quantity surveying services for market walk - 43,056 over an 18 month period",19/04/2017,0120291,"2,704.00",Capital,Pick Everard,76515,,
Chorley Borough Council,http://statistics.data.gov.uk/id/local-authority/30UE,Capital,Capital,Customer & Digital,Consultants Fees,03025,Capital Expenditure,Capital,"Project management services for market walk - 111,384 over an 18 month period",19/04/2017,0120298,"5,408.00",Capital,Pick Everard,76515,,
Chorley Borough Council,http://statistics.data.gov.uk/id/local-authority/30UE,Corporate Management,1008,Customer & Digital,Postages,40082,Communication and Computing,5028,Postage per item,12/04/2017,0120451,"6,750.00",Revenue,Pioneer Print Solutions,76681,,
Chorley Borough Council,http://statistics.data.gov.uk/id/local-authority/30UE,Business Support,1095,Chief Executive,Miscellaneous Expenses,40200,Miscellaneous Expenses,5034,botany bay plan,21/04/2017,0120407,"4,316.25",Revenue,Planit IE Limited,62532,,
Chorley Borough Council,http://statistics.data.gov.uk/id/local-authority/30UE,Capital,Capital,Customer & Digital,Consultants Fees,03025,Capital Expenditure,Capital,credited,28/04/2017,0119374,"33,000.00",Capital,Poppy Signs Ltd,21898,,
Chorley Borough Council,http://statistics.data.gov.uk/id/local-authority/30UE,Capital,Capital,Business Development & Growth,Main Contractor,03007,Capital Expenditure,Capital,"Primrose Hoarding Panels - manufacture, supply and install: Direct UV print to 3mm aluminium composite flat panels.  ",26/04/2017,0120671,"2,299.55",Capital,Poppy Signs Ltd,21898,,
Chorley Borough Council,http://statistics.data.gov.uk/id/local-authority/30UE,Unapportionable Central OHeads,1009,Policy & Governance,Photocopier Consumables,40049,"Printing, Stationery & General",5026,"Evolution Business, A4 80gsm box 2500",07/04/2017,0120342,251.00,Revenue,Premier Paper Group,54451,,
Chorley Borough Council,http://statistics.data.gov.uk/id/local-authority/30UE,Unapportionable Central OHeads,1009,Chief Executive,Photocopier Consumables,40049,"Printing, Stationery & General",5026,"Evolution Everyday A4 80gsm, Box 2500",21/04/2017,0120532,454.00,Revenue,Premier Paper Group,54451,,
Chorley Borough Council,http://statistics.data.gov.uk/id/local-authority/30UE,Homelessness,1075,Early Intervention,Computer Software-Maintenance,40107,Communication and Computing,5028,Chorley Council contribution to the upgrade of the Abritas (Select Move) system,21/04/2017,0120567,"1,023.63",Revenue,Preston City Council,16657,,
Chorley Borough Council,http://statistics.data.gov.uk/id/local-authority/30UE,Elections,1012,Policy & Governance,Postages,40082,Communication and Computing,5028,postage for parliamentary poll cards,26/04/2017,0120648,"22,781.73",Revenue,Print Image Facilities LLP,57870,,
Chorley Borough Council,http://statistics.data.gov.uk/id/local-authority/30UE,Elections,1012,Policy & Governance,Printing,40043,"Printing, Stationery & General",5026,"83,900 Lcc Poll Cards 4000 Empty property poll cards delivery",07/04/2017,0120285,"6,186.54",Revenue,Print Image Network,21171,,
Chorley Borough Council,http://statistics.data.gov.uk/id/local-authority/30UE,Homelessness,1075,Early Intervention,External Contractors,50008,Private Contractors,5042,Control Centre Monitoring - Homeless Service 01.04.17 - 31.03.18,21/04/2017,0120539,"3,897.90",Revenue,Progress Housing Group,64340,,
Chorley Borough Council,http://statistics.data.gov.uk/id/local-authority/30UE,Other Short Term Creditors,,Policy & Governance,General Balances,00100,Balance Sheet,Balance,sal ded,26/04/2017,0120605,"2,671.83",Revenue,PRUDENTIAL,18178,,
Chorley Borough Council,http://statistics.data.gov.uk/id/local-authority/30UE,Central Support Services,1009,Customer & Digital,Computer Software-Maintenance,40107,Communication and Computing,5028,"License, maintenance & support for DFG software to 31st March 2018 (with license & support for the provision of friendly forms ",05/04/2017,0120077,705.55,Revenue,Qtech Applications Ltd,17271,,
Chorley Borough Council,http://statistics.data.gov.uk/id/local-authority/30UE,Business Support,1095,Business Development & Growth,Miscellaneous Expenses,40200,Miscellaneous Expenses,5034,"Rentokil service for market walk including- pests x 8 visits per annum, MyLearning SME (FREE) MyRentokil Lite (FREE)",21/04/2017,0120540,315.00,Revenue,Rentokil,76639,,
Chorley Borough Council,http://statistics.data.gov.uk/id/local-authority/30UE,Business Support,1095,Business Development & Growth,Grants To Other Organisations,40127,Grants and Subscriptions,5031,choose chorley,21/04/2017,0120553,"6,000.00",Revenue,Retreat (Adlington) Ltd,76655,,
Chorley Borough Council,http://statistics.data.gov.uk/id/local-authority/30UE,Service Management & Support,1009,Customer & Digital,Supplies-Grounds Maintenance,40025,"Equipment, Furniture & Materia",5023,Trustee Amenity -  5 litres,19/04/2017,0120469,"1,060.00",Revenue,Rigby Taylor Ltd,16299,,
Chorley Borough Council,http://statistics.data.gov.uk/id/local-authority/30UE,Corporate Management,1008,Customer & Digital,Contributions Parish Councils,40144,Grants and Subscriptions,5031,top up,05/04/2017,0120272,169.00,Revenue,Rivington Parish Council,16209,,
Chorley Borough Council,http://statistics.data.gov.uk/id/local-authority/30UE,Payments of Precepts to Parish,1018,Customer & Digital,Parish Council Tax,04500,Revenue Account Transfers,Balance,precept,05/04/2017,0120272,"2,331.00",Revenue,Rivington Parish Council,16209,,
Chorley Borough Council,http://statistics.data.gov.uk/id/local-authority/30UE,Corporate Management,1008,Customer & Digital,Other Contributions,40145,Grants and Subscriptions,5031,ADDRESS REDACTED,07/04/2017,0120356,"4,706.00",Revenue,NAME REDACTED,73988,,
Chorley Borough Council,http://statistics.data.gov.uk/id/local-authority/30UE,Elections,1012,Policy & Governance,Postages,40082,Communication and Computing,5028,Business reply from October 2016 - March 2017   Licences number RRHA-KZCB-CAXA,05/04/2017,0120170,326.31,Revenue,Royal Mail Group Plc,17522,,
Chorley Borough Council,http://statistics.data.gov.uk/id/local-authority/30UE,Corporate Management,1008,Policy & Governance,Publicity - Advertising,40157,Miscellaneous Expenses,5034,garden waste animation video,28/04/2017,0120408,700.00,Revenue,Ryan Hammond,76548,,
Chorley Borough Council,http://statistics.data.gov.uk/id/local-authority/30UE,Democratic Represent and  Mgnt,1007,Business Development & Growth,Electricity,20013,Energy Costs,5006,Tatton cc,26/04/2017,0120556,932.89,Revenue,Scottish Power,19010,,
Chorley Borough Council,http://statistics.data.gov.uk/id/local-authority/30UE,Homelessness,1075,Early Intervention,External Contractor,40198,Miscellaneous Expenses,5034,"Concierge Service at Cotswold Supported Housing, Cotswold Road, Chorley, Lancashire, PR7 3HW. April 2016 to March 2017 ",07/04/2017,0120296,"2,269.80",Revenue,Sector Security Services,19269,,
Chorley Borough Council,http://statistics.data.gov.uk/id/local-authority/30UE,Homelessness,1075,Early Intervention,External Contractor,40198,Miscellaneous Expenses,5034,"For Concierge Service at Cotswold Supported Housing, Cotswold Road, Chorley, Lancashire, PR7 3HW. This is for the period ",21/04/2017,0120586,"2,225.60",Revenue,Sector Security Services,19269,,
Chorley Borough Council,http://statistics.data.gov.uk/id/local-authority/30UE,Business Support,1095,Business Development & Growth,Security Service,40062,Services,5027,To provide security services to Market Walk Shopping Centre from April 2017 to March 2018. @5809.40 per month - Contract No,26/04/2017,0120622,"5,809.40",Revenue,Securitas Security Services (UK) Ltd,70693,,
Chorley Borough Council,http://statistics.data.gov.uk/id/local-authority/30UE,Unapportionable Central OHeads,1009,Policy & Governance,Agency Staff,13000,Direct Employee Expenses,5001,Locum Solicitor - NAME REDACTED,05/04/2017,0120207,"1,208.05",Revenue,Sellick Partnership Limited,76554,,
Chorley Borough Council,http://statistics.data.gov.uk/id/local-authority/30UE,Unapportionable Central OHeads,1009,Policy & Governance,Agency Staff,13000,Direct Employee Expenses,5001,Transfer fee payable to Sellick Partnership,21/04/2017,0120531,"8,000.00",Revenue,Sellick Partnership Limited,76554,,
Chorley Borough Council,http://statistics.data.gov.uk/id/local-authority/30UE,Capital,Capital,Early Intervention,Grants,03002,Capital Expenditure,Capital,ADDRESS REDACTED,19/04/2017,0120454,"9,208.00",Capital,Sencat Ltd,76652,,
Chorley Borough Council,http://statistics.data.gov.uk/id/local-authority/30UE,Central Support Services,1009,Customer & Digital,Computer Equipment-Purchase,40098,Communication and Computing,5028,Duronic DM352 Double Twin LCD LED Desk Mount Arm Monitor Stand Bracket Tilt and Swivel (Tilt 15�|Swivel 180�|Rotate 360�),05/04/2017,0120174,944.58,Revenue,Shine-Mart Ltd,61253,,
Chorley Borough Council,http://statistics.data.gov.uk/id/local-authority/30UE,Central Support Services,1009,Customer & Digital,Computer Equipment-Purchase,40098,Communication and Computing,5028,Delivery,05/04/2017,0120174,40.00,Revenue,Shine-Mart Ltd,61253,,
Chorley Borough Council,http://statistics.data.gov.uk/id/local-authority/30UE,Service Management & Support,1009,Customer & Digital,Protective Clothing,40040,"Clothing, Uniforms and Laundry",5025,Yellow Hi-Viz 3/4 length jacket.  Orbit Gerant to EN471 & EN47343 Class 3.  c/w Chorley Council Full Colour logo screen printed ,05/04/2017,0120139,73.25,Revenue,Smart Image Workwear,21064,,
Chorley Borough Council,http://statistics.data.gov.uk/id/local-authority/30UE,Service Management & Support,1009,Customer & Digital,Protective Clothing,40040,"Clothing, Uniforms and Laundry",5025,Yellow Hi-Viz 3/4 length jacket.  Orbit Gerant to EN471 & EN47343 Class 3.  c/w Chorley Council Full Colour logo screen printed ,05/04/2017,0120139,73.25,Revenue,Smart Image Workwear,21064,,
Chorley Borough Council,http://statistics.data.gov.uk/id/local-authority/30UE,Service Management & Support,1009,Customer & Digital,Protective Clothing,40040,"Clothing, Uniforms and Laundry",5025,Yellow Hi-Viz 3/4 length jacket.  Orbit Gerant to EN471 & EN47343 Class 3.  c/w Chorley Council Full Colour logo screen printed ,05/04/2017,0120139,73.25,Revenue,Smart Image Workwear,21064,,
Chorley Borough Council,http://statistics.data.gov.uk/id/local-authority/30UE,Service Management & Support,1009,Customer & Digital,Protective Clothing,40040,"Clothing, Uniforms and Laundry",5025,Yellow Hi-Viz 3/4 length jacket.  Orbit Gerant to EN471 & EN47343 Class 3.  c/w Chorley Council Full Colour logo screen printed ,05/04/2017,0120139,29.30,Revenue,Smart Image Workwear,21064,,
Chorley Borough Council,http://statistics.data.gov.uk/id/local-authority/30UE,Service Management & Support,1009,Customer & Digital,Protective Clothing,40040,"Clothing, Uniforms and Laundry",5025,High-Viz Yellow Waterproof Bomber Jacket c/w Chorley Council full colour loge screen printed front and back.Size = Large.Prod,05/04/2017,0120139,28.90,Revenue,Smart Image Workwear,21064,,
Chorley Borough Council,http://statistics.data.gov.uk/id/local-authority/30UE,Service Management & Support,1009,Customer & Digital,Protective Clothing,40040,"Clothing, Uniforms and Laundry",5025,High-Viz Yellow Waterproof Bomber Jacket c/w Chorley Council full colour loge screen printed front and back.  Size = X Large,05/04/2017,0120139,28.90,Revenue,Smart Image Workwear,21064,,
Chorley Borough Council,http://statistics.data.gov.uk/id/local-authority/30UE,Service Management & Support,1009,Customer & Digital,Protective Clothing,40040,"Clothing, Uniforms and Laundry",5025,High-Viz Yellow Waterproof Bomber Jacket c/w Chorley Council full colour loge screen printed front and back.  Size = XX Large,05/04/2017,0120139,28.90,Revenue,Smart Image Workwear,21064,,
Chorley Borough Council,http://statistics.data.gov.uk/id/local-authority/30UE,Service Management & Support,1009,Customer & Digital,Protective Clothing,40040,"Clothing, Uniforms and Laundry",5025,Uneek UC122 Polo Shirt.  Colour = Red c/w Chorley Council White Logo embroidered on left breast.  Size = Medium. Product,12/04/2017,0120358,42.00,Revenue,Smart Image Workwear,21064,,
Chorley Borough Council,http://statistics.data.gov.uk/id/local-authority/30UE,Service Management & Support,1009,Customer & Digital,Protective Clothing,40040,"Clothing, Uniforms and Laundry",5025,Uneek UC122 Polo Shirt.  Colour = Red c/w Chorley Council White Logo embroidered on left breast.  Size = Large.  Product Code,12/04/2017,0120358,42.00,Revenue,Smart Image Workwear,21064,,
Chorley Borough Council,http://statistics.data.gov.uk/id/local-authority/30UE,Service Management & Support,1009,Customer & Digital,Protective Clothing,40040,"Clothing, Uniforms and Laundry",5025,Uneek UC122 Polo Shirt.  Colour = Red c/w Chorley Council White Logo embroidered on left breast. Size = X Large.Product Code,12/04/2017,0120358,42.00,Revenue,Smart Image Workwear,21064,,
Chorley Borough Council,http://statistics.data.gov.uk/id/local-authority/30UE,Service Management & Support,1009,Customer & Digital,Protective Clothing,40040,"Clothing, Uniforms and Laundry",5025,Uneek UC122 Polo Shirt.  Colour = Red c/w Chorley Council White Logo embroidered on left breast.  Size = XX Large.  Product ,12/04/2017,0120358,42.00,Revenue,Smart Image Workwear,21064,,
Chorley Borough Council,http://statistics.data.gov.uk/id/local-authority/30UE,Service Management & Support,1009,Customer & Digital,Protective Clothing,40040,"Clothing, Uniforms and Laundry",5025,Uneek UC203 crew neck sweatshirt.  Colour = Red c/w Chorley Council White logo embroidered on left breast.  Size = Medium.,12/04/2017,0120358,31.50,Revenue,Smart Image Workwear,21064,,
Chorley Borough Council,http://statistics.data.gov.uk/id/local-authority/30UE,Service Management & Support,1009,Customer & Digital,Protective Clothing,40040,"Clothing, Uniforms and Laundry",5025,Uneek UC203 crew neck sweatshirt.  Colour = Red c/w Chorley Council White logo embroidered on left breast.  Size = X Large.,12/04/2017,0120358,31.50,Revenue,Smart Image Workwear,21064,,
Chorley Borough Council,http://statistics.data.gov.uk/id/local-authority/30UE,Service Management & Support,1009,Customer & Digital,Protective Clothing,40040,"Clothing, Uniforms and Laundry",5025,Uneek UC203 crew neck sweatshirt.  Colour = Red c/w Chorley Council White logo embroidered on left breast.  Size = XXX Large,12/04/2017,0120358,31.50,Revenue,Smart Image Workwear,21064,,
Chorley Borough Council,http://statistics.data.gov.uk/id/local-authority/30UE,Service Management & Support,1009,Customer & Digital,Protective Clothing,40040,"Clothing, Uniforms and Laundry",5025,Orbit Hercules 620 Safety Boot (ankle).  Product Code = CBC03.  Size = 11,12/04/2017,0120358,43.00,Revenue,Smart Image Workwear,21064,,
Chorley Borough Council,http://statistics.data.gov.uk/id/local-authority/30UE,Corporate Management,1008,Customer & Digital,Miscellaneous Expenses,40200,Miscellaneous Expenses,5034,"Brown Bin stickers. 100MM X 100MMPRINTED CMYK - LIGHTFAST INKS + UV VARNISHGLOSS WHITE POLYPROPYLE",05/04/2017,0120190,855.14,Revenue,Smart Print & Labels ( Sales) Ltd,22340,,
Chorley Borough Council,http://statistics.data.gov.uk/id/local-authority/30UE,Corporate Management,1008,Customer & Digital,Miscellaneous Expenses,40200,Miscellaneous Expenses,5034,Print plates,05/04/2017,0120190,105.00,Revenue,Smart Print & Labels ( Sales) Ltd,22340,,
Chorley Borough Council,http://statistics.data.gov.uk/id/local-authority/30UE,Unapportionable Central OHeads,1009,Policy & Governance,Miscellaneous Expenses,40200,Miscellaneous Expenses,5034,Provision of 2 Boombikes for the Chorley Grand Prix,28/04/2017,0120666,675.00,Revenue,Sound Intervention Ltd,65504,,
Chorley Borough Council,http://statistics.data.gov.uk/id/local-authority/30UE,Homelessness,1075,Early Intervention,Other Contributions,40145,Grants and Subscriptions,5031,Sanctuary Scheme Re-Charge to Chorley 2016/2017,26/04/2017,0120660,"5,002.92",Revenue,South Ribble Borough Council,17889,,
Chorley Borough Council,http://statistics.data.gov.uk/id/local-authority/30UE,Economic Development,1096,Business Development & Growth,Miscellaneous Expenses,40200,Miscellaneous Expenses,5034,For buffet catering for Annual Business Network Evening April 2017,26/04/2017,0120364,"1,606.50",Revenue,St Catherines Social Enterprise Ltd,76345,,
Chorley Borough Council,http://statistics.data.gov.uk/id/local-authority/30UE,Corporate Management,1008,Policy & Governance,Other Contributions,40145,Grants and Subscriptions,5031,7c bus service,10/04/2017,0120490,"9,252.44",Revenue,Stagecoach Services Limited,18598,,
Chorley Borough Council,http://statistics.data.gov.uk/id/local-authority/30UE,Corporate Management,1008,Customer & Digital,Other Contributions,40145,Grants and Subscriptions,5031,ADDRESS REDACTED,28/04/2017,0120721,"4,706.00",Revenue,NAME REDACTED,74801,,
Chorley Borough Council,http://statistics.data.gov.uk/id/local-authority/30UE,Capital,Capital,Business Development & Growth,Main Contractor,03007,Capital Expenditure,Capital,General building Work At Union Street,07/04/2017,0120278,"15,741.86",Capital,Stringfellow Bldg Cntrctrs Ltd,17893,,
Chorley Borough Council,http://statistics.data.gov.uk/id/local-authority/30UE,Capital,Capital,Early Intervention,Grants,03002,Capital Expenditure,Capital,ADDRESS REDACTED,26/04/2017,0120455,"12,314.00",Capital,Stringfellow Bldg Cntrctrs Ltd,17893,,
Chorley Borough Council,http://statistics.data.gov.uk/id/local-authority/30UE,Capital,Capital,Business Development & Growth,Surveyors Fees,03021,Capital Expenditure,Capital,Yarrow Meadows Masterplan. Topographical survey of bridge area and ground level checks across the rest of the site (2nr days),26/04/2017,0120477,"1,300.00",Capital,Survey Operations Ltd,55910,,
Chorley Borough Council,http://statistics.data.gov.uk/id/local-authority/30UE,Corporate Management,1008,Customer & Digital,Other Contributions,40145,Grants and Subscriptions,5031,ADDRESS REDACTED,28/04/2017,0120722,"4,706.00",Revenue,NAME REDACTED,75220,,
Chorley Borough Council,http://statistics.data.gov.uk/id/local-authority/30UE,Unapportionable Central OHeads,1009,Policy & Governance,Cleaning Materials,40019,"Equipment, Furniture & Materia",5023,Paper towels 3600 green 1 fold QTY 20 boxes 10.10 per box,07/04/2017,0120074,30.30,Revenue,Swiftkleen Ltd,17933,,
Chorley Borough Council,http://statistics.data.gov.uk/id/local-authority/30UE,Unapportionable Central OHeads,1009,Policy & Governance,Cleaning Materials,40019,"Equipment, Furniture & Materia",5023,TR320 soft toilet rolls QTY 12 packs @ 36/pack at 5.50 per box,07/04/2017,0120074,66.00,Revenue,Swiftkleen Ltd,17933,,
Chorley Borough Council,http://statistics.data.gov.uk/id/local-authority/30UE,Unapportionable Central OHeads,1009,Policy & Governance,Cleaning Materials,40019,"Equipment, Furniture & Materia",5023,05SSMJ Mini Jumbo QTY 10 packs 12/pack @ 6.65 per pack,07/04/2017,0120074,66.50,Revenue,Swiftkleen Ltd,17933,,
Chorley Borough Council,http://statistics.data.gov.uk/id/local-authority/30UE,Unapportionable Central OHeads,1009,Policy & Governance,Cleaning Materials,40019,"Equipment, Furniture & Materia",5023,EVER Everfresh Evens toilet cleaner apple 5L 3.38 per container QTY 3 boxes,07/04/2017,0120074,20.28,Revenue,Swiftkleen Ltd,17933,,
Chorley Borough Council,http://statistics.data.gov.uk/id/local-authority/30UE,Unapportionable Central OHeads,1009,Policy & Governance,Cleaning Materials,40019,"Equipment, Furniture & Materia",5023,TB Atlas thick bleach 5ltr QTY 4 boxes @ 1.55 per container,07/04/2017,0120074,6.20,Revenue,Swiftkleen Ltd,17933,,
Chorley Borough Council,http://statistics.data.gov.uk/id/local-authority/30UE,Unapportionable Central OHeads,1009,Policy & Governance,Cleaning Materials,40019,"Equipment, Furniture & Materia",5023,CAF Spray Air fresh QTY 12 @0.70 each,07/04/2017,0120074,7.20,Revenue,Swiftkleen Ltd,17933,,
Chorley Borough Council,http://statistics.data.gov.uk/id/local-authority/30UE,Unapportionable Central OHeads,1009,Policy & Governance,Cleaning Materials,40019,"Equipment, Furniture & Materia",5023,SAF Stand up air freshener 12 per case and 3.36 per case QTY 2 cases,07/04/2017,0120074,6.72,Revenue,Swiftkleen Ltd,17933,,
Chorley Borough Council,http://statistics.data.gov.uk/id/local-authority/30UE,Unapportionable Central OHeads,1009,Policy & Governance,Cleaning Materials,40019,"Equipment, Furniture & Materia",5023,SBL White Swing bin liners 20 roll per pack 72p per pack QTY 20 packs,07/04/2017,0120074,14.80,Revenue,Swiftkleen Ltd,17933,,
Chorley Borough Council,http://statistics.data.gov.uk/id/local-authority/30UE,Unapportionable Central OHeads,1009,Policy & Governance,Cleaning Materials,40019,"Equipment, Furniture & Materia",5023,39BBL Black bin liners QTY 4 boxes 11.70 per box,07/04/2017,0120074,46.80,Revenue,Swiftkleen Ltd,17933,,
Chorley Borough Council,http://statistics.data.gov.uk/id/local-authority/30UE,Unapportionable Central OHeads,1009,Policy & Governance,Cleaning Materials,40019,"Equipment, Furniture & Materia",5023,DUST Yellow Duster pack of 10 @ 1.10 QTY 2 packs,07/04/2017,0120074,2.20,Revenue,Swiftkleen Ltd,17933,,
Chorley Borough Council,http://statistics.data.gov.uk/id/local-authority/30UE,Unapportionable Central OHeads,1009,Policy & Governance,Cleaning Materials,40019,"Equipment, Furniture & Materia",5023,WLG Evans Lemon Neutral Multi Purpose Cleaning & Deodoriser Gel 5 Litre  2 boxes 6.85,07/04/2017,0120074,17.20,Revenue,Swiftkleen Ltd,17933,,
Chorley Borough Council,http://statistics.data.gov.uk/id/local-authority/30UE,Unapportionable Central OHeads,1009,Policy & Governance,Cleaning Materials,40019,"Equipment, Furniture & Materia",5023,BLU Evans High Active Washing up Liquid/Detergent 5 litre PH Neutral 3.26 QTY 4,07/04/2017,0120074,13.04,Revenue,Swiftkleen Ltd,17933,,
Chorley Borough Council,http://statistics.data.gov.uk/id/local-authority/30UE,Unapportionable Central OHeads,1009,Policy & Governance,Cleaning Materials,40019,"Equipment, Furniture & Materia",5023,EX250PBY BLUE Excel Mop Head  98p each QTY 10,07/04/2017,0120074,9.80,Revenue,Swiftkleen Ltd,17933,,
Chorley Borough Council,http://statistics.data.gov.uk/id/local-authority/30UE,Unapportionable Central OHeads,1009,Policy & Governance,Cleaning Materials,40019,"Equipment, Furniture & Materia",5023,EXCEL 250 Twine Mop Green 1.61 each QTY 10,07/04/2017,0120074,13.70,Revenue,Swiftkleen Ltd,17933,,
Chorley Borough Council,http://statistics.data.gov.uk/id/local-authority/30UE,Unapportionable Central OHeads,1009,Policy & Governance,Cleaning Materials,40019,"Equipment, Furniture & Materia",5023,EXCEL 250 Twine Mop Red 1.61 each QTY 10,07/04/2017,0120074,13.70,Revenue,Swiftkleen Ltd,17933,,
Chorley Borough Council,http://statistics.data.gov.uk/id/local-authority/30UE,Unapportionable Central OHeads,1009,Policy & Governance,Cleaning Materials,40019,"Equipment, Furniture & Materia",5023,TRIPFC Trigon foam cartridges at 3.18 QTY 3 Cases,07/04/2017,0120074,57.24,Revenue,Swiftkleen Ltd,17933,,
Chorley Borough Council,http://statistics.data.gov.uk/id/local-authority/30UE,Unapportionable Central OHeads,1009,Policy & Governance,Pensions Increase Act Payments,18005,Indirect Employee Expenses,5002,2nd half recharchable costs,12/04/2017,0120429,"2,634.65",Revenue,Tameside MBC-Gmpf,17034,,
Chorley Borough Council,http://statistics.data.gov.uk/id/local-authority/30UE,Central Support Services,1009,Customer & Digital,Computer Equipment-Purchase,40098,Communication and Computing,5028,12 week rental of 11 crates @ 3 per week per crate,26/04/2017,0120617,396.00,Revenue,TOFM Limited  T/A Tailored Office Solutions,57621,,
Chorley Borough Council,http://statistics.data.gov.uk/id/local-authority/30UE,Economic Development,1096,Customer & Digital,Fixtures & Fittings - Purchase,20027,Fixtures and Fittings,5010,Flat Iron Car park - Removal of all trees and shrubs,07/04/2017,0120073,"3,800.00",Revenue,Treescape North West Ltd,17688,,
Chorley Borough Council,http://statistics.data.gov.uk/id/local-authority/30UE,Capital,Capital,Customer & Digital,Other Contractor,03012,Capital Expenditure,Capital,To fell & remove Fir Tree in front of Astley Hall,28/04/2017,0120638,"1,100.00",Capital,Treescape North West Ltd,17688,,
Chorley Borough Council,http://statistics.data.gov.uk/id/local-authority/30UE,Corporate Management,1008,Policy & Governance,Treasury Management Service,40065,Services,5027,Brokerage Fees for Short Term Borrowing 17/18,12/04/2017,0120449,"1,016.44",Revenue,Tullett Prebon (UK) Ltd,19053,,
Chorley Borough Council,http://statistics.data.gov.uk/id/local-authority/30UE,Unapportionable Central OHeads,1009,Policy & Governance,Miscellaneous Expenses,40200,Miscellaneous Expenses,5034,levels 1-5,12/04/2017,0120333,"1,450.55",Revenue,UK Healthcare (BDHSC),17241,,
Chorley Borough Council,http://statistics.data.gov.uk/id/local-authority/30UE,Control Accounts,Control,Policy & Governance,General Balances,00100,Balance Sheet,Balance,top ups,12/04/2017,0120333,651.78,Revenue,UK Healthcare (BDHSC),17241,,
Chorley Borough Council,http://statistics.data.gov.uk/id/local-authority/30UE,Unapportionable Central OHeads,1009,Policy & Governance,Miscellaneous Expenses,40200,Miscellaneous Expenses,5034,"Stage, production management, artists and other children�s entertainment for Picnic in the Park 2017",28/04/2017,0120647,"4,581.25",Revenue,UK Media and Events Limited,71221,,
Chorley Borough Council,http://statistics.data.gov.uk/id/local-authority/30UE,Corporate Management,1008,Customer & Digital,Contributions Parish Councils,40144,Grants and Subscriptions,5031,top up,05/04/2017,0120273,205.00,Revenue,Ulnes Walton Parish Council,16210,,
Chorley Borough Council,http://statistics.data.gov.uk/id/local-authority/30UE,Payments of Precepts to Parish,1018,Customer & Digital,Parish Council Tax,04500,Revenue Account Transfers,Balance,precept,05/04/2017,0120273,"5,794.00",Revenue,Ulnes Walton Parish Council,16210,,
Chorley Borough Council,http://statistics.data.gov.uk/id/local-authority/30UE,Business Support,1095,Business Development & Growth,Miscellaneous Expenses,40200,Miscellaneous Expenses,5034,For provision of business loan services 2016/17,05/04/2017,0120173,500.00,Revenue,Unify Credit Union Ltd,55509,,
Chorley Borough Council,http://statistics.data.gov.uk/id/local-authority/30UE,Business Support,1095,Business Development & Growth,Miscellaneous Expenses,40200,Miscellaneous Expenses,5034,For provision of business loan services 2016/17,12/04/2017,0120409,500.00,Revenue,Unify Credit Union Ltd,55509,,
Chorley Borough Council,http://statistics.data.gov.uk/id/local-authority/30UE,Control Accounts,Control,Policy & Governance,General Balances,00100,Balance Sheet,Balance,sal ded,26/04/2017,0120607,"1,744.15",Revenue,Unify Credit Union Ltd,55509,,
Chorley Borough Council,http://statistics.data.gov.uk/id/local-authority/30UE,Central Support Services,1009,Customer & Digital,Telephones - Maintenance,40233,Communication and Computing,5028,"Site Contract No. 44031628 Cover MON - FRI 8-6 4Hr  Resp, Exc Hols, Period Covered: 01.03.17 to 31.08.17System Service",19/04/2017,0120079,"3,103.02",Revenue,Unify Enterprise Communications,21179,,
Chorley Borough Council,http://statistics.data.gov.uk/id/local-authority/30UE,Central Support Services,1009,Customer & Digital,Telephones - Maintenance,40233,Communication and Computing,5028,"Site Contract No. 44031628 Cover MON - FRI 8-6 4Hr  Resp, Exc Hols, Period Covered: 01.03.17 to 31.08.17 System Service:",19/04/2017,0120079,"2,071.02",Revenue,Unify Enterprise Communications,21179,,
Chorley Borough Council,http://statistics.data.gov.uk/id/local-authority/30UE,Planning Policy,1092,Business Development & Growth,Professional Fees,40063,Services,5027,NAME REDACTED - Planning support extension March 2017,05/04/2017,0120231,"2,639.63",Revenue,Urban Vision Partnership Ltd,21181,,
Chorley Borough Council,http://statistics.data.gov.uk/id/local-authority/30UE,Development Control,1091,Customer & Digital,Professional Fees,40063,Services,5027,planning support,28/04/2017,0120488,379.98,Revenue,Urban Vision Partnership Ltd,21181,,
Chorley Borough Council,http://statistics.data.gov.uk/id/local-authority/30UE,Development Control,1091,Customer & Digital,Professional Fees,40063,Services,5027,palnning supprt,28/04/2017,0120489,"5,715.73",Revenue,Urban Vision Partnership Ltd,21181,,
Chorley Borough Council,http://statistics.data.gov.uk/id/local-authority/30UE,Central Support Services,1009,Customer & Digital,Internet Charges,40104,Communication and Computing,5028,april 17 charges,26/04/2017,0120633,"1,531.39",Revenue,Virgin Media Payments Ltd,17632,,
Chorley Borough Council,http://statistics.data.gov.uk/id/local-authority/30UE,Central Support Services,1009,Customer & Digital,Computer Equipment - Security,40106,Communication and Computing,5028,quarterly charges,07/04/2017,0120327,"2,414.73",Revenue,Vodafone Ltd,60180,,
Chorley Borough Council,http://statistics.data.gov.uk/id/local-authority/30UE,Democratic Represent and  Mgnt,1007,Business Development & Growth,Water - Metered Supplies,20022,Water Services,5009,astley coach house,05/04/2017,0120194,724.25,Revenue,Water-plus,17926,,
Chorley Borough Council,http://statistics.data.gov.uk/id/local-authority/30UE,Economic Development,1096,Business Development & Growth,Water - Metered Supplies,20022,Water Services,5009,market stall 1,26/04/2017,0120558,415.49,Revenue,Water-plus,17926,,
Chorley Borough Council,http://statistics.data.gov.uk/id/local-authority/30UE,Unapportionable Central OHeads,1009,Policy & Governance,Service Fees,40056,Services,5027,Counselling sessions for BA,19/04/2017,0120410,288.00,Revenue,Wendy Marsh Counselling & Supervision Services,64551,,
Chorley Borough Council,http://statistics.data.gov.uk/id/local-authority/30UE,Corporate Management,1008,Customer & Digital,Contributions Parish Councils,40144,Grants and Subscriptions,5031,top up,05/04/2017,0120274,432.00,Revenue,Wheelton Parish Council,16189,,
Chorley Borough Council,http://statistics.data.gov.uk/id/local-authority/30UE,Payments of Precepts to Parish,1018,Customer & Digital,Parish Council Tax,04500,Revenue Account Transfers,Balance,precept,05/04/2017,0120274,"11,830.00",Revenue,Wheelton Parish Council,16189,,
Chorley Borough Council,http://statistics.data.gov.uk/id/local-authority/30UE,Unapportionable Central OHeads,1009,Chief Executive,Postages,40082,Communication and Computing,5028,"Mail Collection for Town Hall and Union Street, April 2016 - March 2017",21/04/2017,0120585,277.20,Revenue,Whistl North Limited,67256,,
Chorley Borough Council,http://statistics.data.gov.uk/id/local-authority/30UE,Payments of Precepts to Parish,1018,Customer & Digital,Parish Council Tax,04500,Revenue Account Transfers,Balance,precept,05/04/2017,0120275,"37,647.00",Revenue,Whittle-le-Woods Parish Council,18602,,
Chorley Borough Council,http://statistics.data.gov.uk/id/local-authority/30UE,Corporate Management,1008,Customer & Digital,Other Contributions,40145,Grants and Subscriptions,5031,ADDRESS REDACTED,12/04/2017,0120370,"1,674.00",Revenue,NAME REDACTED,73892,,
Chorley Borough Council,http://statistics.data.gov.uk/id/local-authority/30UE,Corporate Management,1008,Customer & Digital,Contributions Parish Councils,40144,Grants and Subscriptions,5031,top up,05/04/2017,0120276,"1,483.00",Revenue,Withnell Parish Council,16211,,
Chorley Borough Council,http://statistics.data.gov.uk/id/local-authority/30UE,Payments of Precepts to Parish,1018,Customer & Digital,Parish Council Tax,04500,Revenue Account Transfers,Balance,precept,05/04/2017,0120276,"27,787.00",Revenue,Withnell Parish Council,16211,,
Chorley Borough Council,http://statistics.data.gov.uk/id/local-authority/30UE,Democratic Represent and  Mgnt,1007,Policy & Governance,Exhibitions & Special Events,40158,Miscellaneous Expenses,5034,"Deposit for presentation of Spark! with 5 performers and 1 technician, includes travel and accommodation. 50% of total cost.",05/04/2017,0120146,"1,585.00",Revenue,Worldbeaters Music LLP,74291,,
Chorley Borough Council,http://statistics.data.gov.uk/id/local-authority/30UE,Service Management & Support,1009,Customer & Digital,Vehicle Maintenance,30045,Direct Transport Costs,5016,Carry out MOT and full service on NJ10OTW as on invoice number 9619,12/04/2017,0120450,478.91,Revenue,Wrekamendid Services Ltd,21188,,
Chorley Borough Council,http://statistics.data.gov.uk/id/local-authority/30UE,Service Management & Support,1009,Customer & Digital,Vehicle Maintenance,30045,Direct Transport Costs,5016,mot,12/04/2017,0120450,45.00,Revenue,Wrekamendid Services Ltd,21188,,
Chorley Borough Council,http://statistics.data.gov.uk/id/local-authority/30UE,Unapportionable Central OHeads,1009,Policy & Governance,Service Fees,40056,Services,5027,occ health,21/04/2017,0120574,52.00,Revenue,WWL NHS FT,66700,,
Chorley Borough Council,http://statistics.data.gov.uk/id/local-authority/30UE,Unapportionable Central OHeads,1009,Policy & Governance,Service Fees,40056,Services,5027,Service Fees,21/04/2017,0120574,600.00,Revenue,WWL NHS FT,66700,,
Chorley Borough Council,http://statistics.data.gov.uk/id/local-authority/30UE,Unapportionable Central OHeads,1009,Policy & Governance,Service Fees,40056,Services,5027,occ health,21/04/2017,0120576,78.00,Revenue,WWL NHS FT,66700,,
Chorley Borough Council,http://statistics.data.gov.uk/id/local-authority/30UE,Unapportionable Central OHeads,1009,Policy & Governance,Service Fees,40056,Services,5027,Service Fees,21/04/2017,0120576,465.00,Revenue,WWL NHS FT,66700,,
Chorley Borough Council,http://statistics.data.gov.uk/id/local-authority/30UE,Unapportionable Central OHeads,1009,Customer & Digital,Photocopier Charges,40047,"Printing, Stationery & General",5026,april-july charges,21/04/2017,0120559,381.29,Revenue,Xeretec Document Solutions,20052,,
Chorley Borough Council,http://statistics.data.gov.uk/id/local-authority/30UE,Homelessness,1075,Early Intervention,Furniture - Purchase,40012,"Equipment, Furniture & Materia",5023,D11241 - Rio Caf� Circular Pedestal Table 720(H) x 700mm(Dia),26/04/2017,0120343,119.50,Revenue,Yorkshire Purchasing Org,18098,,
Chorley Borough Council,http://statistics.data.gov.uk/id/local-authority/30UE,Homelessness,1075,Early Intervention,Furniture - Purchase,40012,"Equipment, Furniture & Materia",5023,D11240 - Rio Caf� Armchair 720(H) x 440(SH) x 500(W) x 520mm(D),26/04/2017,0120343,211.20,Revenue,Yorkshire Purchasing Org,18098,,
